Department family,Entity,Date,Expense type,Expense area,Supplier,Transaction number,Amount
Department of Health,Leicestershire Partnership NHS Trust,02/03/18,WIP Project Not in BS - Information Technology,Work in Progress,VIRGIN MEDIA BUSINESS,60033256,25238.57
Department of Health,Leicestershire Partnership NHS Trust,02/03/18,NURSE - BAND 2 - AGENCY,Beechwood Ward,HCL NURSING,MAN27275,427.63
Department of Health,Leicestershire Partnership NHS Trust,02/03/18,NURSE - BAND 5 - AGENCY,Beechwood Ward,HCL NURSING,MAN27275,327.32
Department of Health,Leicestershire Partnership NHS Trust,02/03/18,Nurse - Band 6 -Agency,City East CMHT MHSOP,HCL NURSING,MAN27275,3013.67
Department of Health,Leicestershire Partnership NHS Trust,02/03/18,NURSE - BAND 5 - AGENCY,City ICS,HCL NURSING,MAN27275,6796.97
Department of Health,Leicestershire Partnership NHS Trust,02/03/18,NURSE - BAND 5 - AGENCY,City Planned Care - East,HCL NURSING,MAN27275,11055.23
Department of Health,Leicestershire Partnership NHS Trust,02/03/18,NURSE - BAND 3 - AGENCY,City Planned Care - West,HCL NURSING,MAN27275,559.87
Department of Health,Leicestershire Partnership NHS Trust,02/03/18,NURSE - BAND 5 - AGENCY,City Planned Care - West,HCL NURSING,MAN27275,7131.56
Department of Health,Leicestershire Partnership NHS Trust,02/03/18,Nurse - Band 6 -Agency,City West CMHT MHSOP,HCL NURSING,MAN27275,1061.76
Department of Health,Leicestershire Partnership NHS Trust,02/03/18,NURSE - BAND 2 - AGENCY,Clarendon Ward,HCL NURSING,MAN27275,270.48
Department of Health,Leicestershire Partnership NHS Trust,02/03/18,NURSE - BAND 5 - AGENCY,Clarendon Ward,HCL NURSING,MAN27275,259.30
Department of Health,Leicestershire Partnership NHS Trust,02/03/18,NURSE - BAND 2 - AGENCY,Coalville Snibston Ward,HCL NURSING,MAN27275,2104.58
Department of Health,Leicestershire Partnership NHS Trust,02/03/18,NURSE - BAND 2 - AGENCY,Coalville Ward 2,HCL NURSING,MAN27275,1633.17
Department of Health,Leicestershire Partnership NHS Trust,02/03/18,NURSE - BAND 2 - AGENCY,Dalgliesh Ward,HCL NURSING,MAN27275,761.55
Department of Health,Leicestershire Partnership NHS Trust,02/03/18,NURSE - BAND 5 - AGENCY,Dalgliesh Ward,HCL NURSING,MAN27275,327.32
Department of Health,Leicestershire Partnership NHS Trust,02/03/18,NURSE - BAND 5 - AGENCY,East Planned Care - Blaby/Lutterworth,HCL NURSING,MAN27275,1303.70
Department of Health,Leicestershire Partnership NHS Trust,02/03/18,NURSE - BAND 5 - AGENCY,"East Planned Care - Melton,Syston,Rutland",HCL NURSING,MAN27275,6716.68
Department of Health,Leicestershire Partnership NHS Trust,02/03/18,NURSE - BAND 3 - AGENCY,"East Planned Care - Oadby,Wigston & Harborough",HCL NURSING,MAN27275,509.60
Department of Health,Leicestershire Partnership NHS Trust,02/03/18,NURSE - BAND 5 - AGENCY,"East Planned Care - Oadby,Wigston & Harborough",HCL NURSING,MAN27275,3040.25
Department of Health,Leicestershire Partnership NHS Trust,02/03/18,NURSE - BAND 5 - AGENCY,Evening Service,HCL NURSING,MAN27275,1933.58
Department of Health,Leicestershire Partnership NHS Trust,02/03/18,NURSE - BAND 5 - AGENCY,Fielding Palmer Nursing,HCL NURSING,MAN27275,4582.64
Department of Health,Leicestershire Partnership NHS Trust,02/03/18,NURSE - BAND 2 - AGENCY,Gwendolen Ward (ex Coleman Ward),HCL NURSING,MAN27275,143.89
Department of Health,Leicestershire Partnership NHS Trust,02/03/18,NURSE - BAND 2 - AGENCY,H&B Comm Hosp East Ward,HCL NURSING,MAN27275,232.62
Department of Health,Leicestershire Partnership NHS Trust,02/03/18,NURSE - BAND 5 - AGENCY,H&B Comm Hosp East Ward,HCL NURSING,MAN27275,389.91
Department of Health,Leicestershire Partnership NHS Trust,02/03/18,NURSE - BAND 2 - AGENCY,H&B Comm Hosp North Ward,HCL NURSING,MAN27275,1083.83
Department of Health,Leicestershire Partnership NHS Trust,02/03/18,NURSE - BAND 5 - AGENCY,H&B Comm Hosp North Ward,HCL NURSING,MAN27275,423.47
Department of Health,Leicestershire Partnership NHS Trust,02/03/18,NURSE - BAND 5 - AGENCY,Integrated Care Service - Rutland,HCL NURSING,MAN27275,-1975.62
Department of Health,Leicestershire Partnership NHS Trust,02/03/18,NURSE - BAND 2 - AGENCY,Kirby Ward,HCL NURSING,MAN27275,893.26
Department of Health,Leicestershire Partnership NHS Trust,02/03/18,NURSE - BAND 2 - AGENCY,Lough Swithland Ward,HCL NURSING,MAN27275,326.48
Department of Health,Leicestershire Partnership NHS Trust,02/03/18,Nurse - Band 6 -Agency,Melton & Rutland CMHT MHSOP,HCL NURSING,MAN27275,2123.52
Department of Health,Leicestershire Partnership NHS Trust,02/03/18,NURSE - BAND 5 - AGENCY,North East ICS,HCL NURSING,MAN27275,318.37
Department of Health,Leicestershire Partnership NHS Trust,02/03/18,NURSE - BAND 3 - AGENCY,North West ICS,HCL NURSING,MAN27275,505.89
Department of Health,Leicestershire Partnership NHS Trust,02/03/18,NURSE - BAND 5 - AGENCY,North West ICS,HCL NURSING,MAN27275,2599.08
Department of Health,Leicestershire Partnership NHS Trust,02/03/18,NURSE - BAND 2 - AGENCY,Rutland Ward Nursing,HCL NURSING,MAN27275,223.60
Department of Health,Leicestershire Partnership NHS Trust,02/03/18,NURSE - BAND 5 - AGENCY,South East ICS,HCL NURSING,MAN27275,6417.62
Department of Health,Leicestershire Partnership NHS Trust,02/03/18,NURSE - BAND 5 - AGENCY,South West ICS,HCL NURSING,MAN27275,1397.41
Department of Health,Leicestershire Partnership NHS Trust,02/03/18,NURSE - BAND 2 - AGENCY,St Lukes Stroke Ward,HCL NURSING,MAN27275,423.15
Department of Health,Leicestershire Partnership NHS Trust,02/03/18,NURSE - BAND 5 - AGENCY,St Lukes Stroke Ward,HCL NURSING,MAN27275,337.38
Department of Health,Leicestershire Partnership NHS Trust,02/03/18,NURSE - BAND 5 - AGENCY,St Lukes Ward 3,HCL NURSING,MAN27275,2139.44
Department of Health,Leicestershire Partnership NHS Trust,02/03/18,NURSE - BAND 2 - AGENCY,Wakerley Ward (ex Gwendolen ward),HCL NURSING,MAN27275,195.37
Department of Health,Leicestershire Partnership NHS Trust,02/03/18,NURSE - BAND 2 - AGENCY,Welford Ward,HCL NURSING,MAN27275,339.45
Department of Health,Leicestershire Partnership NHS Trust,02/03/18,NURSE - BAND 3 - AGENCY,West Planned Care  - Charnwood Hub,HCL NURSING,MAN27275,466.08
Department of Health,Leicestershire Partnership NHS Trust,02/03/18,NURSE - BAND 5 - AGENCY,West Planned Care  - Charnwood Hub,HCL NURSING,MAN27275,5008.96
Department of Health,Leicestershire Partnership NHS Trust,02/03/18,NURSE - BAND 5 - AGENCY,West Planned Care - NWL Hub,HCL NURSING,MAN27275,736.30
Department of Health,Leicestershire Partnership NHS Trust,05/03/18,Crs_NHS_LT1y -Resus Inventory Supplied.,Balance Sheet Collection,NHS SUPPLY CHAIN (ST1450),1018235300,62929.69
Department of Health,Leicestershire Partnership NHS Trust,05/03/18,Services / Recharges from NHS Trusts,Inter Unit I & E Distribution,UHL NHS TRUST (RWE),L0204813,191775.38
Department of Health,Leicestershire Partnership NHS Trust,05/03/18,UHL Facilities Management SLA,Estates Central Invoices To Recharge,UHL NHS TRUST (RWE),L0204838,700000.00
Department of Health,Leicestershire Partnership NHS Trust,05/03/18,Occupational Health,HR Operations,UHL NHS TRUST (RWE),L0204840,26344.00
Department of Health,Leicestershire Partnership NHS Trust,05/03/18,Rent,"OSL House (P54, LPT)",CABOT TRUSTEES LTD,047,38990.59
Department of Health,Leicestershire Partnership NHS Trust,05/03/18,Printing Costs,Universal Child Health Records,HARLOW PRINTING LTD,797659,32084.00
Department of Health,Leicestershire Partnership NHS Trust,05/03/18,Rent,Bridge Park Plaza - First Floor (LPT),RAYNSWAY PROPERTIES LTD,46225,70816.80
Department of Health,Leicestershire Partnership NHS Trust,06/03/18,FP10'S,Adult City Central CMHT - St Peters,NHS BUS SERVICES AUTHORITY,1000054993,179.89
Department of Health,Leicestershire Partnership NHS Trust,06/03/18,FP10'S,Adult City Drugs,NHS BUS SERVICES AUTHORITY,1000054993,11872.76
Department of Health,Leicestershire Partnership NHS Trust,06/03/18,FP10'S,Adult County Drugs,NHS BUS SERVICES AUTHORITY,1000054993,16370.00
Department of Health,Leicestershire Partnership NHS Trust,06/03/18,FP10'S,CAMHS County Outpatients,NHS BUS SERVICES AUTHORITY,1000054993,15200.71
Department of Health,Leicestershire Partnership NHS Trust,06/03/18,FP10'S,Children Services Medical,NHS BUS SERVICES AUTHORITY,1000054993,6925.77
Department of Health,Leicestershire Partnership NHS Trust,06/03/18,FP10'S,Dementia Related Drugs and Investigations,NHS BUS SERVICES AUTHORITY,1000054993,7015.66
Department of Health,Leicestershire Partnership NHS Trust,06/03/18,FP10'S,Eating Disorders Outpatient Service,NHS BUS SERVICES AUTHORITY,1000054993,539.67
Department of Health,Leicestershire Partnership NHS Trust,06/03/18,FP10'S,Forensic Services - Community,NHS BUS SERVICES AUTHORITY,1000054993,179.89
Department of Health,Leicestershire Partnership NHS Trust,06/03/18,FP10'S,H&B Comm Hosp East Ward,NHS BUS SERVICES AUTHORITY,1000054993,11872.74
Department of Health,Leicestershire Partnership NHS Trust,06/03/18,FP10'S,Leicestershire Psych-oncology Service,NHS BUS SERVICES AUTHORITY,1000054993,629.64
Department of Health,Leicestershire Partnership NHS Trust,06/03/18,FP10'S,Lough Swithland Ward,NHS BUS SERVICES AUTHORITY,1000054993,89.95
Department of Health,Leicestershire Partnership NHS Trust,06/03/18,FP10'S,PIER Team - Early Intervention Services,NHS BUS SERVICES AUTHORITY,1000054993,13131.97
Department of Health,Leicestershire Partnership NHS Trust,06/03/18,FP10'S,Pharmacy,NHS BUS SERVICES AUTHORITY,1000054993,809.51
Department of Health,Leicestershire Partnership NHS Trust,06/03/18,FP10'S,Snr Med Staff (Inc Med Reps),NHS BUS SERVICES AUTHORITY,1000054993,5126.87
Department of Health,Leicestershire Partnership NHS Trust,06/03/18,Drugs,Adult City Drugs,JANSSEN-CILAG LTD,930380838,10271.09
Department of Health,Leicestershire Partnership NHS Trust,06/03/18,Drugs,Adult County Drugs,JANSSEN-CILAG LTD,930380838,15406.64
Department of Health,Leicestershire Partnership NHS Trust,06/03/18,Payroll Deductions -Salary Sacrifice Cars Scheme,Balance Sheet Collection,TUSKER,LPT801-0118,24499.43
Department of Health,Leicestershire Partnership NHS Trust,06/03/18,Payroll Deductions -Salary Sacrifice Cars Scheme,Balance Sheet Collection,TUSKER,LPT801-0218,25035.59
Department of Health,Leicestershire Partnership NHS Trust,06/03/18,Water & Sewerage Charges,"Beaumont Leys Health Centre (P94, LPT)",WATER PLUS,0865005329/DEC17,713.74
Department of Health,Leicestershire Partnership NHS Trust,06/03/18,Water & Sewerage Charges,"Coalville Community Hospital (P138, LPT)",WATER PLUS,0865005329/DEC17,970.79
Department of Health,Leicestershire Partnership NHS Trust,06/03/18,Water & Sewerage Charges,Estates & Facilities Central,WATER PLUS,0865005329/DEC17,388.74
Department of Health,Leicestershire Partnership NHS Trust,06/03/18,Water & Sewerage Charges,"LGH - Gwendolen House (P4, LPT)",WATER PLUS,0865005329/DEC17,664.61
Department of Health,Leicestershire Partnership NHS Trust,06/03/18,Water & Sewerage Charges,"Loughborough Hospital (P136, LPT)",WATER PLUS,0865005329/DEC17,10755.33
Department of Health,Leicestershire Partnership NHS Trust,06/03/18,Water & Sewerage Charges,"Paget House (P55, LPT)",WATER PLUS,0865005329/DEC17,831.07
Department of Health,Leicestershire Partnership NHS Trust,06/03/18,Water & Sewerage Charges,"Prince Philip House (P96, LPT)",WATER PLUS,0865005329/DEC17,2404.22
Department of Health,Leicestershire Partnership NHS Trust,06/03/18,Water & Sewerage Charges,Renaissance House (D&A Counselling) (LPT),WATER PLUS,0865005329/DEC17,213.94
Department of Health,Leicestershire Partnership NHS Trust,06/03/18,Water & Sewerage Charges,"Shepshed Health Centre (P123, LPT)",WATER PLUS,0865005329/DEC17,1954.17
Department of Health,Leicestershire Partnership NHS Trust,06/03/18,Water & Sewerage Charges,"Stewart House (P61, LPT)",WATER PLUS,0865005329/DEC17,5325.16
Department of Health,Leicestershire Partnership NHS Trust,06/03/18,Water & Sewerage Charges,"The Cedars (P19, LPT)",WATER PLUS,0865005329/DEC17,507.44
Department of Health,Leicestershire Partnership NHS Trust,06/03/18,Water & Sewerage Charges,"The Willows - Cordelia Close (P22, LPT)",WATER PLUS,0865005329/DEC17,1365.86
Department of Health,Leicestershire Partnership NHS Trust,06/03/18,Water & Sewerage Charges,"Westcotes Group -Westcotes House (P78, LPT)",WATER PLUS,0865005329/DEC17,989.19
Department of Health,Leicestershire Partnership NHS Trust,07/03/18,NURSE - BAND 2 - AGENCY,Beechwood Ward,HCL NURSING,MAN27361,168.41
Department of Health,Leicestershire Partnership NHS Trust,07/03/18,NURSE - BAND 5 - AGENCY,City East CMHT MHSOP,HCL NURSING,MAN27361,3851.53
Department of Health,Leicestershire Partnership NHS Trust,07/03/18,NURSE - BAND 5 - AGENCY,City ICS,HCL NURSING,MAN27361,6275.58
Department of Health,Leicestershire Partnership NHS Trust,07/03/18,NURSE - BAND 5 - AGENCY,City Planned Care - East,HCL NURSING,MAN27361,13382.95
Department of Health,Leicestershire Partnership NHS Trust,07/03/18,NURSE - BAND 2 - AGENCY,City Planned Care - West,HCL NURSING,MAN27361,1287.07
Department of Health,Leicestershire Partnership NHS Trust,07/03/18,NURSE - BAND 5 - AGENCY,City Planned Care - West,HCL NURSING,MAN27361,5248.52
Department of Health,Leicestershire Partnership NHS Trust,07/03/18,NURSE - BAND 5 - AGENCY,City West CMHT MHSOP,HCL NURSING,MAN27361,2139.75
Department of Health,Leicestershire Partnership NHS Trust,07/03/18,NURSE - BAND 2 - AGENCY,Clarendon Ward,HCL NURSING,MAN27361,2109.48
Department of Health,Leicestershire Partnership NHS Trust,07/03/18,NURSE - BAND 5 - AGENCY,Clarendon Ward,HCL NURSING,MAN27361,370.38
Department of Health,Leicestershire Partnership NHS Trust,07/03/18,NURSE - BAND 2 - AGENCY,Coalville Snibston Ward,HCL NURSING,MAN27361,1509.31
Department of Health,Leicestershire Partnership NHS Trust,07/03/18,NURSE - BAND 5 - AGENCY,Coalville Snibston Ward,HCL NURSING,MAN27361,274.96
Department of Health,Leicestershire Partnership NHS Trust,07/03/18,NURSE - BAND 2 - AGENCY,Coalville Ward 2,HCL NURSING,MAN27361,626.70
Department of Health,Leicestershire Partnership NHS Trust,07/03/18,NURSE - BAND 2 - AGENCY,Dalgliesh Ward,HCL NURSING,MAN27361,386.79
Department of Health,Leicestershire Partnership NHS Trust,07/03/18,NURSE - BAND 5 - AGENCY,Dalgliesh Ward,HCL NURSING,MAN27361,329.81
Department of Health,Leicestershire Partnership NHS Trust,07/03/18,NURSE - BAND 5 - AGENCY,"East Planned Care - Melton,Syston,Rutland",HCL NURSING,MAN27361,2610.43
Department of Health,Leicestershire Partnership NHS Trust,07/03/18,NURSE - BAND 2 - AGENCY,"East Planned Care - Oadby,Wigston & Harborough",HCL NURSING,MAN27361,1001.88
Department of Health,Leicestershire Partnership NHS Trust,07/03/18,NURSE - BAND 5 - AGENCY,"East Planned Care - Oadby,Wigston & Harborough",HCL NURSING,MAN27361,1844.31
Department of Health,Leicestershire Partnership NHS Trust,07/03/18,NURSE - BAND 5 - AGENCY,Evening Service,HCL NURSING,MAN27361,1558.74
Department of Health,Leicestershire Partnership NHS Trust,07/03/18,NURSE - BAND 2 - AGENCY,Fielding Palmer Nursing,HCL NURSING,MAN27361,588.58
Department of Health,Leicestershire Partnership NHS Trust,07/03/18,NURSE - BAND 5 - AGENCY,Fielding Palmer Nursing,HCL NURSING,MAN27361,1724.17
Department of Health,Leicestershire Partnership NHS Trust,07/03/18,NURSE - BAND 2 - AGENCY,Gwendolen Ward (ex Coleman Ward),HCL NURSING,MAN27361,837.14
Department of Health,Leicestershire Partnership NHS Trust,07/03/18,NURSE - BAND 5 - AGENCY,Gwendolen Ward (ex Coleman Ward),HCL NURSING,MAN27361,1569.33
Department of Health,Leicestershire Partnership NHS Trust,07/03/18,NURSE - BAND 2 - AGENCY,H&B Comm Hosp East Ward,HCL NURSING,MAN27361,693.73
Department of Health,Leicestershire Partnership NHS Trust,07/03/18,NURSE - BAND 5 - AGENCY,H&B Comm Hosp East Ward,HCL NURSING,MAN27361,346.72
Department of Health,Leicestershire Partnership NHS Trust,07/03/18,NURSE - BAND 2 - AGENCY,H&B Comm Hosp North Ward,HCL NURSING,MAN27361,1230.85
Department of Health,Leicestershire Partnership NHS Trust,07/03/18,NURSE - BAND 5 - AGENCY,H&B Comm Hosp North Ward,HCL NURSING,MAN27361,502.76
Department of Health,Leicestershire Partnership NHS Trust,07/03/18,NURSE - BAND 2 - AGENCY,Kirby Ward,HCL NURSING,MAN27361,223.04
Department of Health,Leicestershire Partnership NHS Trust,07/03/18,NURSE - BAND 5 - AGENCY,Melton & Rutland CMHT MHSOP,HCL NURSING,MAN27361,1069.88
Department of Health,Leicestershire Partnership NHS Trust,07/03/18,NURSE - BAND 5 - AGENCY,North West ICS,HCL NURSING,MAN27361,3070.82
Department of Health,Leicestershire Partnership NHS Trust,07/03/18,NURSE - BAND 5 - AGENCY,South East ICS,HCL NURSING,MAN27361,3784.90
Department of Health,Leicestershire Partnership NHS Trust,07/03/18,NURSE - BAND 5 - AGENCY,South West ICS,HCL NURSING,MAN27361,1336.24
Department of Health,Leicestershire Partnership NHS Trust,07/03/18,NURSE - BAND 2 - AGENCY,St Lukes Stroke Ward,HCL NURSING,MAN27361,412.58
Department of Health,Leicestershire Partnership NHS Trust,07/03/18,NURSE - BAND 5 - AGENCY,St Lukes Stroke Ward,HCL NURSING,MAN27361,392.89
Department of Health,Leicestershire Partnership NHS Trust,07/03/18,NURSE - BAND 5 - AGENCY,St Lukes Ward 3,HCL NURSING,MAN27361,1751.58
Department of Health,Leicestershire Partnership NHS Trust,07/03/18,NURSE - BAND 2 - AGENCY,Wakerley Ward (ex Gwendolen ward),HCL NURSING,MAN27361,1101.59
Department of Health,Leicestershire Partnership NHS Trust,07/03/18,NURSE - BAND 5 - AGENCY,Wakerley Ward (ex Gwendolen ward),HCL NURSING,MAN27361,915.17
Department of Health,Leicestershire Partnership NHS Trust,07/03/18,NURSE - BAND 2 - AGENCY,Welford Ward,HCL NURSING,MAN27361,417.72
Department of Health,Leicestershire Partnership NHS Trust,07/03/18,NURSE - BAND 5 - AGENCY,Welford Ward,HCL NURSING,MAN27361,976.49
Department of Health,Leicestershire Partnership NHS Trust,07/03/18,NURSE - BAND 2 - AGENCY,West Planned Care  - Charnwood Hub,HCL NURSING,MAN27361,210.75
Department of Health,Leicestershire Partnership NHS Trust,07/03/18,NURSE - BAND 5 - AGENCY,West Planned Care  - Charnwood Hub,HCL NURSING,MAN27361,6818.62
Department of Health,Leicestershire Partnership NHS Trust,07/03/18,NURSE - BAND 5 - AGENCY,West Planned Care - NWL Hub,HCL NURSING,MAN27361,1976.58
Department of Health,Leicestershire Partnership NHS Trust,07/03/18,NURSE - BAND 5 - AGENCY,Beechwood Ward,HCL NURSING,MAN27328,259.30
Department of Health,Leicestershire Partnership NHS Trust,07/03/18,NURSE - BAND 5 - AGENCY,City East CMHT MHSOP,HCL NURSING,MAN27328,2745.72
Department of Health,Leicestershire Partnership NHS Trust,07/03/18,NURSE - BAND 5 - AGENCY,City ICS,HCL NURSING,MAN27328,6166.42
Department of Health,Leicestershire Partnership NHS Trust,07/03/18,NURSE - BAND 5 - AGENCY,City Planned Care - East,HCL NURSING,MAN27328,11361.51
Department of Health,Leicestershire Partnership NHS Trust,07/03/18,NURSE - BAND 2 - AGENCY,City Planned Care - West,HCL NURSING,MAN27328,1730.39
Department of Health,Leicestershire Partnership NHS Trust,07/03/18,NURSE - BAND 5 - AGENCY,City Planned Care - West,HCL NURSING,MAN27328,2290.41
Department of Health,Leicestershire Partnership NHS Trust,07/03/18,NURSE - BAND 2 - AGENCY,Clarendon Ward,HCL NURSING,MAN27328,682.10
Department of Health,Leicestershire Partnership NHS Trust,07/03/18,NURSE - BAND 2 - AGENCY,Coalville Snibston Ward,HCL NURSING,MAN27328,738.50
Department of Health,Leicestershire Partnership NHS Trust,07/03/18,NURSE - BAND 2 - AGENCY,Coalville Ward 2,HCL NURSING,MAN27328,1140.23
Department of Health,Leicestershire Partnership NHS Trust,07/03/18,NURSE - BAND 2 - AGENCY,Dalgliesh Ward,HCL NURSING,MAN27328,327.57
Department of Health,Leicestershire Partnership NHS Trust,07/03/18,NURSE - BAND 5 - AGENCY,Dalgliesh Ward,HCL NURSING,MAN27328,1649.54
Department of Health,Leicestershire Partnership NHS Trust,07/03/18,NURSE - BAND 5 - AGENCY,"East Planned Care - Melton,Syston,Rutland",HCL NURSING,MAN27328,2873.02
Department of Health,Leicestershire Partnership NHS Trust,07/03/18,NURSE - BAND 2 - AGENCY,"East Planned Care - Oadby,Wigston & Harborough",HCL NURSING,MAN27328,1096.00
Department of Health,Leicestershire Partnership NHS Trust,07/03/18,NURSE - BAND 5 - AGENCY,"East Planned Care - Oadby,Wigston & Harborough",HCL NURSING,MAN27328,2568.68
Department of Health,Leicestershire Partnership NHS Trust,07/03/18,NURSE - BAND 5 - AGENCY,Evening Service,HCL NURSING,MAN27328,2110.93
Department of Health,Leicestershire Partnership NHS Trust,07/03/18,NURSE - BAND 5 - AGENCY,Fielding Palmer Nursing,HCL NURSING,MAN27328,2901.41
Department of Health,Leicestershire Partnership NHS Trust,07/03/18,NURSE - BAND 2 - AGENCY,Gwendolen Ward (ex Coleman Ward),HCL NURSING,MAN27328,1308.77
Department of Health,Leicestershire Partnership NHS Trust,07/03/18,NURSE - BAND 5 - AGENCY,Gwendolen Ward (ex Coleman Ward),HCL NURSING,MAN27328,3385.58
Department of Health,Leicestershire Partnership NHS Trust,07/03/18,NURSE - BAND 2 - AGENCY,H&B Comm Hosp East Ward,HCL NURSING,MAN27328,1119.87
Department of Health,Leicestershire Partnership NHS Trust,07/03/18,NURSE - BAND 5 - AGENCY,H&B Comm Hosp East Ward,HCL NURSING,MAN27328,346.72
Department of Health,Leicestershire Partnership NHS Trust,07/03/18,NURSE - BAND 2 - AGENCY,H&B Comm Hosp North Ward,HCL NURSING,MAN27328,764.88
Department of Health,Leicestershire Partnership NHS Trust,07/03/18,NURSE - BAND 5 - AGENCY,H&B Comm Hosp North Ward,HCL NURSING,MAN27328,710.80
Department of Health,Leicestershire Partnership NHS Trust,07/03/18,NURSE - BAND 2 - AGENCY,Kirby Ward,HCL NURSING,MAN27328,519.92
Department of Health,Leicestershire Partnership NHS Trust,07/03/18,NURSE - BAND 5 - AGENCY,Kirby Ward,HCL NURSING,MAN27328,297.60
Department of Health,Leicestershire Partnership NHS Trust,07/03/18,NURSE - BAND 2 - AGENCY,Lough Swithland Ward,HCL NURSING,MAN27328,239.57
Department of Health,Leicestershire Partnership NHS Trust,07/03/18,NURSE - BAND 5 - AGENCY,Melton & Rutland CMHT MHSOP,HCL NURSING,MAN27328,1069.88
Department of Health,Leicestershire Partnership NHS Trust,07/03/18,NURSE - BAND 5 - AGENCY,North East ICS,HCL NURSING,MAN27328,-387.59
Department of Health,Leicestershire Partnership NHS Trust,07/03/18,NURSE - BAND 2 - AGENCY,North West ICS,HCL NURSING,MAN27328,296.90
Department of Health,Leicestershire Partnership NHS Trust,07/03/18,NURSE - BAND 5 - AGENCY,North West ICS,HCL NURSING,MAN27328,1778.77
Department of Health,Leicestershire Partnership NHS Trust,07/03/18,NURSE - BAND 5 - AGENCY,South East ICS,HCL NURSING,MAN27328,6872.18
Department of Health,Leicestershire Partnership NHS Trust,07/03/18,NURSE - BAND 5 - AGENCY,South West ICS,HCL NURSING,MAN27328,1892.54
Department of Health,Leicestershire Partnership NHS Trust,07/03/18,NURSE - BAND 2 - AGENCY,St Lukes Stroke Ward,HCL NURSING,MAN27328,116.62
Department of Health,Leicestershire Partnership NHS Trust,07/03/18,NURSE - BAND 5 - AGENCY,St Lukes Stroke Ward,HCL NURSING,MAN27328,979.77
Department of Health,Leicestershire Partnership NHS Trust,07/03/18,NURSE - BAND 5 - AGENCY,St Lukes Ward 3,HCL NURSING,MAN27328,710.33
Department of Health,Leicestershire Partnership NHS Trust,07/03/18,NURSE - BAND 2 - AGENCY,Wakerley Ward (ex Gwendolen ward),HCL NURSING,MAN27328,996.05
Department of Health,Leicestershire Partnership NHS Trust,07/03/18,NURSE - BAND 5 - AGENCY,Wakerley Ward (ex Gwendolen ward),HCL NURSING,MAN27328,361.19
Department of Health,Leicestershire Partnership NHS Trust,07/03/18,NURSE - BAND 2 - AGENCY,Welford Ward,HCL NURSING,MAN27328,113.85
Department of Health,Leicestershire Partnership NHS Trust,07/03/18,NURSE - BAND 2 - AGENCY,West Planned Care  - Charnwood Hub,HCL NURSING,MAN27328,558.34
Department of Health,Leicestershire Partnership NHS Trust,07/03/18,NURSE - BAND 5 - AGENCY,West Planned Care  - Charnwood Hub,HCL NURSING,MAN27328,5276.64
Department of Health,Leicestershire Partnership NHS Trust,07/03/18,NURSE - BAND 2 - AGENCY,West Planned Care - NWL Hub,HCL NURSING,MAN27328,61.05
Department of Health,Leicestershire Partnership NHS Trust,07/03/18,NURSE - BAND 5 - AGENCY,West Planned Care - NWL Hub,HCL NURSING,MAN27328,1101.53
Department of Health,Leicestershire Partnership NHS Trust,07/03/18,NURSE - BAND 5 - AGENCY,CMS Reserves,SERVICE CARE SOLUTIONS LTD,4372,40876.53
Department of Health,Leicestershire Partnership NHS Trust,08/03/18,Network Costs - WAN Maint,HIS Infrastructure,VIRGIN MEDIA BUSINESS,262421-141,48668.67
Department of Health,Leicestershire Partnership NHS Trust,08/03/18,GP IT Expenditure,Area Team,DELL COMPUTERS,7402422067,38476.42
Department of Health,Leicestershire Partnership NHS Trust,09/03/18,HR / Payroll Services,HR Employment Services,EQUINITI ICS LTD,19075637,63772.64
Department of Health,Leicestershire Partnership NHS Trust,09/03/18,WIP Project Not in BS - Buildings excl Dwellings,Work in Progress,INTERSERVE CONSTRUCTION LTD,VEM54691,65788.60
Department of Health,Leicestershire Partnership NHS Trust,09/03/18,WIP Project Not in BS - Buildings excl Dwellings,Work in Progress,INTERSERVE CONSTRUCTION LTD,VEM54696,37871.20
Department of Health,Leicestershire Partnership NHS Trust,12/03/18,Crs_NHS_LT1y -Resus Inventory Supplied.,Balance Sheet Collection,NHS SUPPLY CHAIN (ST1450),1018241359,58328.19
Department of Health,Leicestershire Partnership NHS Trust,12/03/18,Rent,360 Assurance - Corporate,COMM HLTH PARTNERSHIPS LTD,0060026515,35648.96
Department of Health,Leicestershire Partnership NHS Trust,13/03/18,Leased / Hired Vehicles,Acute (CAFS Onc Resp PT),AUTOMOTIVE LEASING LTD,503656599,5.00
Department of Health,Leicestershire Partnership NHS Trust,13/03/18,Leased / Hired Vehicles,Adult County South Leicestershire CMHT,AUTOMOTIVE LEASING LTD,503656599,927.50
Department of Health,Leicestershire Partnership NHS Trust,13/03/18,Leased / Hired Vehicles,Autism,AUTOMOTIVE LEASING LTD,503656599,1277.92
Department of Health,Leicestershire Partnership NHS Trust,13/03/18,Prep_ LT1y -Prepayments Lease Cars,Balance Sheet Collection,AUTOMOTIVE LEASING LTD,503656599,97765.54
Department of Health,Leicestershire Partnership NHS Trust,13/03/18,Trade_Drs_LT1y -Lease Cars Invoicing Contrl Ac.,Balance Sheet Collection,AUTOMOTIVE LEASING LTD,503656599,2439.18
Department of Health,Leicestershire Partnership NHS Trust,13/03/18,Leased / Hired Vehicles,CQUINN 5,AUTOMOTIVE LEASING LTD,503656599,5.00
Department of Health,Leicestershire Partnership NHS Trust,13/03/18,Leased / Hired Vehicles,Children's Speech Therapy,AUTOMOTIVE LEASING LTD,503656599,5.00
Department of Health,Leicestershire Partnership NHS Trust,13/03/18,Leased / Hired Vehicles,City Community Therapy,AUTOMOTIVE LEASING LTD,503656599,436.80
Department of Health,Leicestershire Partnership NHS Trust,13/03/18,Leased / Hired Vehicles,City East Leic HV Area 6,AUTOMOTIVE LEASING LTD,503656599,94.50
Department of Health,Leicestershire Partnership NHS Trust,13/03/18,Leased / Hired Vehicles,City Planned Care - East,AUTOMOTIVE LEASING LTD,503656599,566.60
Department of Health,Leicestershire Partnership NHS Trust,13/03/18,Leased / Hired Vehicles,County 0-19 Market Harborough HV Team,AUTOMOTIVE LEASING LTD,503656599,17.75
Department of Health,Leicestershire Partnership NHS Trust,13/03/18,Leased / Hired Vehicles,Home Enteral Feeding Services,AUTOMOTIVE LEASING LTD,503656599,47.04
Department of Health,Leicestershire Partnership NHS Trust,13/03/18,Leased / Hired Vehicles,Hospice at Home,AUTOMOTIVE LEASING LTD,503656599,551.60
Department of Health,Leicestershire Partnership NHS Trust,13/03/18,Leased / Hired Vehicles,Immunisation,AUTOMOTIVE LEASING LTD,503656599,2873.10
Department of Health,Leicestershire Partnership NHS Trust,13/03/18,Leased / Hired Vehicles,Learning Disabilities - O T,AUTOMOTIVE LEASING LTD,503656599,5.00
Department of Health,Leicestershire Partnership NHS Trust,13/03/18,Leased / Hired Vehicles,Mill Lodge,AUTOMOTIVE LEASING LTD,503656599,417.07
Department of Health,Leicestershire Partnership NHS Trust,13/03/18,Leased / Hired Vehicles,Outreach,AUTOMOTIVE LEASING LTD,503656599,141.00
Department of Health,Leicestershire Partnership NHS Trust,13/03/18,Leased / Hired Vehicles,Productive Ward,AUTOMOTIVE LEASING LTD,503656599,254.89
Department of Health,Leicestershire Partnership NHS Trust,13/03/18,Leased / Hired Vehicles,Stewart House,AUTOMOTIVE LEASING LTD,503656599,35.00
Department of Health,Leicestershire Partnership NHS Trust,13/03/18,Leased / Hired Vehicles,Support Services (Learn Dis),AUTOMOTIVE LEASING LTD,503656599,20.00
Department of Health,Leicestershire Partnership NHS Trust,13/03/18,Leased / Hired Vehicles,West Planned Care  - Charnwood Hub,AUTOMOTIVE LEASING LTD,503656599,137.00
Department of Health,Leicestershire Partnership NHS Trust,13/03/18,Leased / Hired Vehicles,Willows Unit,AUTOMOTIVE LEASING LTD,503656599,4091.12
Department of Health,Leicestershire Partnership NHS Trust,13/03/18,NURSE - BAND 5 - AGENCY,Adult City East CMHT - Merlyn Vaz,HCL NURSING,MAN27394,691.77
Department of Health,Leicestershire Partnership NHS Trust,13/03/18,Nurse - Band 6 -Agency,Adult City East CMHT - Merlyn Vaz,HCL NURSING,MAN27394,9865.50
Department of Health,Leicestershire Partnership NHS Trust,13/03/18,Nurse - Band 6 -Agency,Adult County North West Leicestershire CMHT,HCL NURSING,MAN27394,1046.16
Department of Health,Leicestershire Partnership NHS Trust,13/03/18,NURSE - BAND 2 - AGENCY,Ashby Ward (Bradgate Unit),HCL NURSING,MAN27394,415.26
Department of Health,Leicestershire Partnership NHS Trust,13/03/18,NURSE - BAND 5 - AGENCY,Ashby Ward (Bradgate Unit),HCL NURSING,MAN27394,1415.38
Department of Health,Leicestershire Partnership NHS Trust,13/03/18,NURSE - BAND 5 - AGENCY,Aston Ward (Bradgate Unit),HCL NURSING,MAN27394,3427.42
Department of Health,Leicestershire Partnership NHS Trust,13/03/18,NURSE - BAND 2 - AGENCY,Beaumont Ward - Bradgate Unit,HCL NURSING,MAN27394,441.42
Department of Health,Leicestershire Partnership NHS Trust,13/03/18,NURSE - BAND 5 - AGENCY,Beaumont Ward - Bradgate Unit,HCL NURSING,MAN27394,3544.13
Department of Health,Leicestershire Partnership NHS Trust,13/03/18,NURSE - BAND 2 - AGENCY,Belvoir Psychiatric Intensive Care Unit,HCL NURSING,MAN27394,2125.43
Department of Health,Leicestershire Partnership NHS Trust,13/03/18,NURSE - BAND 5 - AGENCY,Belvoir Psychiatric Intensive Care Unit,HCL NURSING,MAN27394,339.96
Department of Health,Leicestershire Partnership NHS Trust,13/03/18,NURSE - BAND 2 - AGENCY,Bosworth Ward - Bradgate Unit,HCL NURSING,MAN27394,168.41
Department of Health,Leicestershire Partnership NHS Trust,13/03/18,NURSE - BAND 5 - AGENCY,Bosworth Ward - Bradgate Unit,HCL NURSING,MAN27394,659.63
Department of Health,Leicestershire Partnership NHS Trust,13/03/18,NURSE - BAND 5 - AGENCY,Crisis Resolution,HCL NURSING,MAN27394,399.65
Department of Health,Leicestershire Partnership NHS Trust,13/03/18,Nurse - Band 6 -Agency,Crisis Resolution,HCL NURSING,MAN27394,12828.49
Department of Health,Leicestershire Partnership NHS Trust,13/03/18,NURSE - BAND 2 - AGENCY,Griffin Ward (HPC),HCL NURSING,MAN27394,947.94
Department of Health,Leicestershire Partnership NHS Trust,13/03/18,NURSE - BAND 5 - AGENCY,Griffin Ward (HPC),HCL NURSING,MAN27394,3557.88
Department of Health,Leicestershire Partnership NHS Trust,13/03/18,NURSE - BAND 5 - AGENCY,HMP Leicester Prison,HCL NURSING,MAN27394,8114.16
Department of Health,Leicestershire Partnership NHS Trust,13/03/18,NURSE - BAND 2 - AGENCY,Heather Ward,HCL NURSING,MAN27394,1310.55
Department of Health,Leicestershire Partnership NHS Trust,13/03/18,NURSE - BAND 5 - AGENCY,Heather Ward,HCL NURSING,MAN27394,3737.54
Department of Health,Leicestershire Partnership NHS Trust,13/03/18,Nurse - Band 6 -Agency,Mental Health Triage Team,HCL NURSING,MAN27394,1872.96
Department of Health,Leicestershire Partnership NHS Trust,13/03/18,NURSE - BAND 5 - AGENCY,Mill Lodge,HCL NURSING,MAN27394,283.41
Department of Health,Leicestershire Partnership NHS Trust,13/03/18,NURSE - BAND 2 - AGENCY,Phoenix Ward (HPC),HCL NURSING,MAN27394,998.60
Department of Health,Leicestershire Partnership NHS Trust,13/03/18,NURSE - BAND 2 - AGENCY,Thornton Ward - Bradgate Unit,HCL NURSING,MAN27394,355.55
Department of Health,Leicestershire Partnership NHS Trust,13/03/18,NURSE - BAND 2 - AGENCY,Watermead Ward (Bradgate Unit),HCL NURSING,MAN27394,1053.99
Department of Health,Leicestershire Partnership NHS Trust,13/03/18,NURSE - BAND 5 - AGENCY,Watermead Ward (Bradgate Unit),HCL NURSING,MAN27394,2009.76
Department of Health,Leicestershire Partnership NHS Trust,13/03/18,SPECIALIST REGISTRAR,Medical Trainees,UHL NHS TRUST (RWE),SPRSDUMMYCREDIT,-109625.51
Department of Health,Leicestershire Partnership NHS Trust,14/03/18,Med GP Trainees,Medical Trainees,ST.HELENS & KNOWSLEY NHS TRUST,16773609,60000.00
Department of Health,Leicestershire Partnership NHS Trust,14/03/18,Nurse - Band 6 -Agency,Adult City East CMHT - Merlyn Vaz,HCL NURSING,MAN27426,4086.54
Department of Health,Leicestershire Partnership NHS Trust,14/03/18,Nurse - Band 6 -Agency,Adult County North West Leicestershire CMHT,HCL NURSING,MAN27426,836.93
Department of Health,Leicestershire Partnership NHS Trust,14/03/18,NURSE - BAND 5 - AGENCY,Ashby Ward (Bradgate Unit),HCL NURSING,MAN27426,1607.33
Department of Health,Leicestershire Partnership NHS Trust,14/03/18,NURSE - BAND 2 - AGENCY,Aston Ward (Bradgate Unit),HCL NURSING,MAN27426,135.52
Department of Health,Leicestershire Partnership NHS Trust,14/03/18,NURSE - BAND 5 - AGENCY,Aston Ward (Bradgate Unit),HCL NURSING,MAN27426,3869.19
Department of Health,Leicestershire Partnership NHS Trust,14/03/18,NURSE - BAND 2 - AGENCY,Beaumont Ward - Bradgate Unit,HCL NURSING,MAN27426,571.34
Department of Health,Leicestershire Partnership NHS Trust,14/03/18,NURSE - BAND 5 - AGENCY,Beaumont Ward - Bradgate Unit,HCL NURSING,MAN27426,1011.57
Department of Health,Leicestershire Partnership NHS Trust,14/03/18,NURSE - BAND 2 - AGENCY,Belvoir Psychiatric Intensive Care Unit,HCL NURSING,MAN27426,1292.74
Department of Health,Leicestershire Partnership NHS Trust,14/03/18,NURSE - BAND 2 - AGENCY,Bosworth Ward - Bradgate Unit,HCL NURSING,MAN27426,488.72
Department of Health,Leicestershire Partnership NHS Trust,14/03/18,NURSE - BAND 5 - AGENCY,Bosworth Ward - Bradgate Unit,HCL NURSING,MAN27426,1030.01
Department of Health,Leicestershire Partnership NHS Trust,14/03/18,NURSE - BAND 2 - AGENCY,Cedar (Willows),HCL NURSING,MAN27426,116.19
Department of Health,Leicestershire Partnership NHS Trust,14/03/18,NURSE - BAND 5 - AGENCY,Crisis Resolution,HCL NURSING,MAN27426,94.96
Department of Health,Leicestershire Partnership NHS Trust,14/03/18,Nurse - Band 6 -Agency,Crisis Resolution,HCL NURSING,MAN27426,3956.71
Department of Health,Leicestershire Partnership NHS Trust,14/03/18,Nurse - Band 6 -Agency,Deliberate Self Harm,HCL NURSING,MAN27426,1872.96
Department of Health,Leicestershire Partnership NHS Trust,14/03/18,NURSE - BAND 2 - AGENCY,Griffin Ward (HPC),HCL NURSING,MAN27426,361.18
Department of Health,Leicestershire Partnership NHS Trust,14/03/18,NURSE - BAND 5 - AGENCY,Griffin Ward (HPC),HCL NURSING,MAN27426,1815.54
Department of Health,Leicestershire Partnership NHS Trust,14/03/18,NURSE - BAND 5 - AGENCY,HMP Leicester Prison,HCL NURSING,MAN27426,4486.18
Department of Health,Leicestershire Partnership NHS Trust,14/03/18,NURSE - BAND 2 - AGENCY,Heather Ward,HCL NURSING,MAN27426,1234.33
Department of Health,Leicestershire Partnership NHS Trust,14/03/18,NURSE - BAND 5 - AGENCY,Heather Ward,HCL NURSING,MAN27426,3198.63
Department of Health,Leicestershire Partnership NHS Trust,14/03/18,NURSE - BAND 5 - AGENCY,Mill Lodge,HCL NURSING,MAN27426,274.96
Department of Health,Leicestershire Partnership NHS Trust,14/03/18,NURSE - BAND 2 - AGENCY,Phoenix Ward (HPC),HCL NURSING,MAN27426,362.98
Department of Health,Leicestershire Partnership NHS Trust,14/03/18,NURSE - BAND 5 - AGENCY,Phoenix Ward (HPC),HCL NURSING,MAN27426,307.32
Department of Health,Leicestershire Partnership NHS Trust,14/03/18,NURSE - BAND 2 - AGENCY,Stewart House,HCL NURSING,MAN27426,109.19
Department of Health,Leicestershire Partnership NHS Trust,14/03/18,NURSE - BAND 2 - AGENCY,Sycamore (Willows),HCL NURSING,MAN27426,116.19
Department of Health,Leicestershire Partnership NHS Trust,14/03/18,NURSE - BAND 2 - AGENCY,Thornton Ward - Bradgate Unit,HCL NURSING,MAN27426,234.53
Department of Health,Leicestershire Partnership NHS Trust,14/03/18,NURSE - BAND 2 - AGENCY,Watermead Ward (Bradgate Unit),HCL NURSING,MAN27426,918.78
Department of Health,Leicestershire Partnership NHS Trust,14/03/18,NURSE - BAND 5 - AGENCY,Watermead Ward (Bradgate Unit),HCL NURSING,MAN27426,2324.48
Department of Health,Leicestershire Partnership NHS Trust,14/03/18,Contract : Accomodation,Out of County Income - Inpateints Project,TURNING POINT,SI-TPS-00017101,49507.67
Department of Health,Leicestershire Partnership NHS Trust,16/03/18,Mobile Telephone Rental / Calls,Specific Unit Budget Reserves,VODAFONE CORPORATE LTD,86849082,33155.46
Department of Health,Leicestershire Partnership NHS Trust,16/03/18,WIP Project Not in BS - Transport and Equipment,Work in Progress,ARJO UK LTD,3390749764,53820.86
Department of Health,Leicestershire Partnership NHS Trust,16/03/18,NURSE - BAND 2 - AGENCY,Beechwood Ward,HCL NURSING,MAN27395,641.84
Department of Health,Leicestershire Partnership NHS Trust,16/03/18,NURSE - BAND 5 - AGENCY,City East CMHT MHSOP,HCL NURSING,MAN27395,-5888.32
Department of Health,Leicestershire Partnership NHS Trust,16/03/18,NURSE - BAND 5 - AGENCY,City ICS,HCL NURSING,MAN27395,5900.31
Department of Health,Leicestershire Partnership NHS Trust,16/03/18,NURSE - BAND 5 - AGENCY,City Planned Care - East,HCL NURSING,MAN27395,12789.59
Department of Health,Leicestershire Partnership NHS Trust,16/03/18,NURSE - BAND 2 - AGENCY,City Planned Care - West,HCL NURSING,MAN27395,815.78
Department of Health,Leicestershire Partnership NHS Trust,16/03/18,NURSE - BAND 5 - AGENCY,City Planned Care - West,HCL NURSING,MAN27395,5080.98
Department of Health,Leicestershire Partnership NHS Trust,16/03/18,NURSE - BAND 5 - AGENCY,City West CMHT MHSOP,HCL NURSING,MAN27395,1069.88
Department of Health,Leicestershire Partnership NHS Trust,16/03/18,NURSE - BAND 2 - AGENCY,Clarendon Ward,HCL NURSING,MAN27395,2850.10
Department of Health,Leicestershire Partnership NHS Trust,16/03/18,NURSE - BAND 5 - AGENCY,Clarendon Ward,HCL NURSING,MAN27395,698.88
Department of Health,Leicestershire Partnership NHS Trust,16/03/18,NURSE - BAND 2 - AGENCY,Coalville Snibston Ward,HCL NURSING,MAN27395,1697.75
Department of Health,Leicestershire Partnership NHS Trust,16/03/18,NURSE - BAND 2 - AGENCY,Coalville Ward 2,HCL NURSING,MAN27395,836.39
Department of Health,Leicestershire Partnership NHS Trust,16/03/18,NURSE - BAND 5 - AGENCY,Dalgliesh Ward,HCL NURSING,MAN27395,916.70
Department of Health,Leicestershire Partnership NHS Trust,16/03/18,NURSE - BAND 5 - AGENCY,"East Planned Care - Melton,Syston,Rutland",HCL NURSING,MAN27395,7038.24
Department of Health,Leicestershire Partnership NHS Trust,16/03/18,NURSE - BAND 2 - AGENCY,"East Planned Care - Oadby,Wigston & Harborough",HCL NURSING,MAN27395,993.60
Department of Health,Leicestershire Partnership NHS Trust,16/03/18,NURSE - BAND 5 - AGENCY,"East Planned Care - Oadby,Wigston & Harborough",HCL NURSING,MAN27395,2648.28
Department of Health,Leicestershire Partnership NHS Trust,16/03/18,NURSE - BAND 5 - AGENCY,Evening Service,HCL NURSING,MAN27395,1984.74
Department of Health,Leicestershire Partnership NHS Trust,16/03/18,NURSE - BAND 2 - AGENCY,Fielding Palmer Nursing,HCL NURSING,MAN27395,109.19
Department of Health,Leicestershire Partnership NHS Trust,16/03/18,NURSE - BAND 5 - AGENCY,Fielding Palmer Nursing,HCL NURSING,MAN27395,2526.71
Department of Health,Leicestershire Partnership NHS Trust,16/03/18,NURSE - BAND 2 - AGENCY,Gwendolen Ward (ex Coleman Ward),HCL NURSING,MAN27395,1687.56
Department of Health,Leicestershire Partnership NHS Trust,16/03/18,NURSE - BAND 5 - AGENCY,Gwendolen Ward (ex Coleman Ward),HCL NURSING,MAN27395,302.58
Department of Health,Leicestershire Partnership NHS Trust,16/03/18,NURSE - BAND 2 - AGENCY,H&B Comm Hosp East Ward,HCL NURSING,MAN27395,918.55
Department of Health,Leicestershire Partnership NHS Trust,16/03/18,NURSE - BAND 5 - AGENCY,H&B Comm Hosp East Ward,HCL NURSING,MAN27395,346.72
Department of Health,Leicestershire Partnership NHS Trust,16/03/18,NURSE - BAND 2 - AGENCY,H&B Comm Hosp North Ward,HCL NURSING,MAN27395,1022.19
Department of Health,Leicestershire Partnership NHS Trust,16/03/18,NURSE - BAND 2 - AGENCY,Kirby Ward,HCL NURSING,MAN27395,339.64
Department of Health,Leicestershire Partnership NHS Trust,16/03/18,NURSE - BAND 5 - AGENCY,Kirby Ward,HCL NURSING,MAN27395,135.29
Department of Health,Leicestershire Partnership NHS Trust,16/03/18,NURSE - BAND 5 - AGENCY,North East ICS,HCL NURSING,MAN27395,189.57
Department of Health,Leicestershire Partnership NHS Trust,16/03/18,NURSE - BAND 2 - AGENCY,North West ICS,HCL NURSING,MAN27395,1630.84
Department of Health,Leicestershire Partnership NHS Trust,16/03/18,NURSE - BAND 5 - AGENCY,North West ICS,HCL NURSING,MAN27395,2498.49
Department of Health,Leicestershire Partnership NHS Trust,16/03/18,NURSE - BAND 2 - AGENCY,Rutland Ward Nursing,HCL NURSING,MAN27395,211.93
Department of Health,Leicestershire Partnership NHS Trust,16/03/18,NURSE - BAND 2 - AGENCY,South East ICS,HCL NURSING,MAN27395,201.87
Department of Health,Leicestershire Partnership NHS Trust,16/03/18,NURSE - BAND 5 - AGENCY,South East ICS,HCL NURSING,MAN27395,4362.43
Department of Health,Leicestershire Partnership NHS Trust,16/03/18,NURSE - BAND 5 - AGENCY,South West ICS,HCL NURSING,MAN27395,833.55
Department of Health,Leicestershire Partnership NHS Trust,16/03/18,NURSE - BAND 2 - AGENCY,St Lukes Stroke Ward,HCL NURSING,MAN27395,296.39
Department of Health,Leicestershire Partnership NHS Trust,16/03/18,NURSE - BAND 5 - AGENCY,St Lukes Stroke Ward,HCL NURSING,MAN27395,320.14
Department of Health,Leicestershire Partnership NHS Trust,16/03/18,NURSE - BAND 5 - AGENCY,St Lukes Ward 3,HCL NURSING,MAN27395,2369.55
Department of Health,Leicestershire Partnership NHS Trust,16/03/18,NURSE - BAND 2 - AGENCY,Wakerley Ward (ex Gwendolen ward),HCL NURSING,MAN27395,569.53
Department of Health,Leicestershire Partnership NHS Trust,16/03/18,NURSE - BAND 5 - AGENCY,Wakerley Ward (ex Gwendolen ward),HCL NURSING,MAN27395,307.74
Department of Health,Leicestershire Partnership NHS Trust,16/03/18,NURSE - BAND 2 - AGENCY,Welford Ward,HCL NURSING,MAN27395,-80.82
Department of Health,Leicestershire Partnership NHS Trust,16/03/18,NURSE - BAND 5 - AGENCY,Welford Ward,HCL NURSING,MAN27395,605.16
Department of Health,Leicestershire Partnership NHS Trust,16/03/18,NURSE - BAND 2 - AGENCY,West Planned Care  - Charnwood Hub,HCL NURSING,MAN27395,522.62
Department of Health,Leicestershire Partnership NHS Trust,16/03/18,NURSE - BAND 5 - AGENCY,West Planned Care  - Charnwood Hub,HCL NURSING,MAN27395,8577.21
Department of Health,Leicestershire Partnership NHS Trust,16/03/18,NURSE - BAND 5 - AGENCY,West Planned Care - NWL Hub,HCL NURSING,MAN27395,2221.08
Department of Health,Leicestershire Partnership NHS Trust,16/03/18,NURSE - BAND 5 - AGENCY,Beechwood Ward,HCL NURSING,MAN27427,700.19
Department of Health,Leicestershire Partnership NHS Trust,16/03/18,Nurse - Band 6 -Agency,City East CMHT MHSOP,HCL NURSING,MAN27427,855.90
Department of Health,Leicestershire Partnership NHS Trust,16/03/18,NURSE - BAND 5 - AGENCY,City ICS,HCL NURSING,MAN27427,4445.15
Department of Health,Leicestershire Partnership NHS Trust,16/03/18,NURSE - BAND 5 - AGENCY,City Planned Care - East,HCL NURSING,MAN27427,8811.68
Department of Health,Leicestershire Partnership NHS Trust,16/03/18,NURSE - BAND 3 - AGENCY,City Planned Care - West,HCL NURSING,MAN27427,911.80
Department of Health,Leicestershire Partnership NHS Trust,16/03/18,NURSE - BAND 5 - AGENCY,City Planned Care - West,HCL NURSING,MAN27427,6025.22
Department of Health,Leicestershire Partnership NHS Trust,16/03/18,Nurse - Band 6 -Agency,City West CMHT MHSOP,HCL NURSING,MAN27427,1337.87
Department of Health,Leicestershire Partnership NHS Trust,16/03/18,NURSE - BAND 2 - AGENCY,Clarendon Ward,HCL NURSING,MAN27427,658.29
Department of Health,Leicestershire Partnership NHS Trust,16/03/18,NURSE - BAND 5 - AGENCY,Clarendon Ward,HCL NURSING,MAN27427,426.69
Department of Health,Leicestershire Partnership NHS Trust,16/03/18,NURSE - BAND 2 - AGENCY,Coalville Snibston Ward,HCL NURSING,MAN27427,1562.46
Department of Health,Leicestershire Partnership NHS Trust,16/03/18,NURSE - BAND 2 - AGENCY,Coalville Ward 2,HCL NURSING,MAN27427,780.91
Department of Health,Leicestershire Partnership NHS Trust,16/03/18,NURSE - BAND 2 - AGENCY,Dalgliesh Ward,HCL NURSING,MAN27427,586.41
Department of Health,Leicestershire Partnership NHS Trust,16/03/18,NURSE - BAND 5 - AGENCY,Dalgliesh Ward,HCL NURSING,MAN27427,1084.56
Department of Health,Leicestershire Partnership NHS Trust,16/03/18,NURSE - BAND 5 - AGENCY,East Planned Care - Blaby/Lutterworth,HCL NURSING,MAN27427,56.14
Department of Health,Leicestershire Partnership NHS Trust,16/03/18,NURSE - BAND 5 - AGENCY,"East Planned Care - Melton,Syston,Rutland",HCL NURSING,MAN27427,1682.34
Department of Health,Leicestershire Partnership NHS Trust,16/03/18,NURSE - BAND 3 - AGENCY,"East Planned Care - Oadby,Wigston & Harborough",HCL NURSING,MAN27427,527.51
Department of Health,Leicestershire Partnership NHS Trust,16/03/18,NURSE - BAND 5 - AGENCY,"East Planned Care - Oadby,Wigston & Harborough",HCL NURSING,MAN27427,1988.29
Department of Health,Leicestershire Partnership NHS Trust,16/03/18,NURSE - BAND 5 - AGENCY,Evening Service,HCL NURSING,MAN27427,1613.17
Department of Health,Leicestershire Partnership NHS Trust,16/03/18,NURSE - BAND 2 - AGENCY,Fielding Palmer Nursing,HCL NURSING,MAN27427,218.93
Department of Health,Leicestershire Partnership NHS Trust,16/03/18,NURSE - BAND 5 - AGENCY,Fielding Palmer Nursing,HCL NURSING,MAN27427,778.37
Department of Health,Leicestershire Partnership NHS Trust,16/03/18,NURSE - BAND 2 - AGENCY,Gwendolen Ward (ex Coleman Ward),HCL NURSING,MAN27427,227.72
Department of Health,Leicestershire Partnership NHS Trust,16/03/18,NURSE - BAND 5 - AGENCY,Gwendolen Ward (ex Coleman Ward),HCL NURSING,MAN27427,312.72
Department of Health,Leicestershire Partnership NHS Trust,16/03/18,NURSE - BAND 2 - AGENCY,H&B Comm Hosp East Ward,HCL NURSING,MAN27427,1060.86
Department of Health,Leicestershire Partnership NHS Trust,16/03/18,NURSE - BAND 2 - AGENCY,H&B Comm Hosp North Ward,HCL NURSING,MAN27427,1577.17
Department of Health,Leicestershire Partnership NHS Trust,16/03/18,NURSE - BAND 5 - AGENCY,H&B Comm Hosp North Ward,HCL NURSING,MAN27427,717.09
Department of Health,Leicestershire Partnership NHS Trust,16/03/18,NURSE - BAND 2 - AGENCY,Kirby Ward,HCL NURSING,MAN27427,432.21
Department of Health,Leicestershire Partnership NHS Trust,16/03/18,NURSE - BAND 5 - AGENCY,Kirby Ward,HCL NURSING,MAN27427,142.05
Department of Health,Leicestershire Partnership NHS Trust,16/03/18,NURSE - BAND 2 - AGENCY,Lough Swithland Ward,HCL NURSING,MAN27427,223.60
Department of Health,Leicestershire Partnership NHS Trust,16/03/18,Nurse - Band 6 -Agency,Melton & Rutland CMHT MHSOP,HCL NURSING,MAN27427,1925.78
Department of Health,Leicestershire Partnership NHS Trust,16/03/18,NURSE - BAND 5 - AGENCY,North East ICS,HCL NURSING,MAN27427,1415.44
Department of Health,Leicestershire Partnership NHS Trust,16/03/18,NURSE - BAND 3 - AGENCY,North West ICS,HCL NURSING,MAN27427,117.07
Department of Health,Leicestershire Partnership NHS Trust,16/03/18,NURSE - BAND 5 - AGENCY,North West ICS,HCL NURSING,MAN27427,1276.87
Department of Health,Leicestershire Partnership NHS Trust,16/03/18,NURSE - BAND 5 - AGENCY,South East ICS,HCL NURSING,MAN27427,7460.76
Department of Health,Leicestershire Partnership NHS Trust,16/03/18,NURSE - BAND 2 - AGENCY,St Lukes Stroke Ward,HCL NURSING,MAN27427,1662.18
Department of Health,Leicestershire Partnership NHS Trust,16/03/18,NURSE - BAND 5 - AGENCY,St Lukes Stroke Ward,HCL NURSING,MAN27427,392.89
Department of Health,Leicestershire Partnership NHS Trust,16/03/18,NURSE - BAND 2 - AGENCY,St Lukes Ward 3,HCL NURSING,MAN27427,218.93
Department of Health,Leicestershire Partnership NHS Trust,16/03/18,NURSE - BAND 5 - AGENCY,St Lukes Ward 3,HCL NURSING,MAN27427,3111.87
Department of Health,Leicestershire Partnership NHS Trust,16/03/18,NURSE - BAND 2 - AGENCY,Wakerley Ward (ex Gwendolen ward),HCL NURSING,MAN27427,611.29
Department of Health,Leicestershire Partnership NHS Trust,16/03/18,NURSE - BAND 5 - AGENCY,Wakerley Ward (ex Gwendolen ward),HCL NURSING,MAN27427,933.85
Department of Health,Leicestershire Partnership NHS Trust,16/03/18,NURSE - BAND 2 - AGENCY,Welford Ward,HCL NURSING,MAN27427,385.64
Department of Health,Leicestershire Partnership NHS Trust,16/03/18,NURSE - BAND 5 - AGENCY,Welford Ward,HCL NURSING,MAN27427,172.94
Department of Health,Leicestershire Partnership NHS Trust,16/03/18,NURSE - BAND 3 - AGENCY,West Planned Care  - Charnwood Hub,HCL NURSING,MAN27427,560.30
Department of Health,Leicestershire Partnership NHS Trust,16/03/18,NURSE - BAND 5 - AGENCY,West Planned Care  - Charnwood Hub,HCL NURSING,MAN27427,3404.77
Department of Health,Leicestershire Partnership NHS Trust,16/03/18,NURSE - BAND 5 - AGENCY,West Planned Care - NWL Hub,HCL NURSING,MAN27427,1701.19
Department of Health,Leicestershire Partnership NHS Trust,19/03/18,Crs_NHS_LT1y -Resus Inventory Supplied.,Balance Sheet Collection,NHS SUPPLY CHAIN (ST1450),1018245019,49413.14
Department of Health,Leicestershire Partnership NHS Trust,19/03/18,External Consultancy Fees,Transformational Funding,NORTHUMB TYNE & WEAR NHSFT(RX4),1/2018,38457.80
Department of Health,Leicestershire Partnership NHS Trust,19/03/18,UHL Facilities Management SLA,Estates Central Invoices To Recharge,UHL NHS TRUST (RWE),L0205279,61795.00
Department of Health,Leicestershire Partnership NHS Trust,20/03/18,WIP Project Not in BS - Transport and Equipment,Work in Progress,NIHON KOHDEN (UK) LTD,95002020,30465.60
Department of Health,Leicestershire Partnership NHS Trust,20/03/18,Landline Telephone Rental / Calls,"Beaumont Leys Health Centre (P94, LPT)",VIRGIN MEDIA BUSINESS,853083001/004/0318,553.94
Department of Health,Leicestershire Partnership NHS Trust,20/03/18,Landline Telephone Rental / Calls,Belgrave Health Centre (CHP),VIRGIN MEDIA BUSINESS,853083001/004/0318,396.47
Department of Health,Leicestershire Partnership NHS Trust,20/03/18,Landline Telephone Rental / Calls,"Bennion Centre (including Forest Grange Day Unit) (P8, LPT)",VIRGIN MEDIA BUSINESS,853083001/004/0318,7.80
Department of Health,Leicestershire Partnership NHS Trust,20/03/18,Landline Telephone Rental / Calls,"Bradgate Unit (including Glenvale day Unit) (P7, LPT)",VIRGIN MEDIA BUSINESS,853083001/004/0318,8900.51
Department of Health,Leicestershire Partnership NHS Trust,20/03/18,Landline Telephone Rental / Calls,Braunstone Health and Social Care Centre (Part) (PROPCO),VIRGIN MEDIA BUSINESS,853083001/004/0318,1475.94
Department of Health,Leicestershire Partnership NHS Trust,20/03/18,Landline Telephone Rental / Calls,Bridge Park Plaza - First Floor (LPT),VIRGIN MEDIA BUSINESS,853083001/004/0318,3988.21
Department of Health,Leicestershire Partnership NHS Trust,20/03/18,Landline Telephone Rental / Calls,"Charnwood Health and Social Care Centre (part)(AKA Merlyn Vaz) (P2, LPT)",VIRGIN MEDIA BUSINESS,853083001/004/0318,-4.16
Department of Health,Leicestershire Partnership NHS Trust,20/03/18,Landline Telephone Rental / Calls,"Coalville Community Hospital (P138, LPT)",VIRGIN MEDIA BUSINESS,853083001/004/0318,1568.08
Department of Health,Leicestershire Partnership NHS Trust,20/03/18,Landline Telephone Rental / Calls,"Coalville Health Centre (P121, LPT)",VIRGIN MEDIA BUSINESS,853083001/004/0318,440.94
Department of Health,Leicestershire Partnership NHS Trust,20/03/18,Landline Telephone Rental / Calls,County Hall,VIRGIN MEDIA BUSINESS,853083001/004/0318,1421.23
Department of Health,Leicestershire Partnership NHS Trust,20/03/18,Landline Telephone Rental / Calls,Estates & Facilities Central,VIRGIN MEDIA BUSINESS,853083001/004/0318,7501.85
Department of Health,Leicestershire Partnership NHS Trust,20/03/18,Landline Telephone Rental / Calls,"Evington Centre (P6, LPT)",VIRGIN MEDIA BUSINESS,853083001/004/0318,1733.31
Department of Health,Leicestershire Partnership NHS Trust,20/03/18,Landline Telephone Rental / Calls,HIS,VIRGIN MEDIA BUSINESS,853083001/004/0318,2723.84
Department of Health,Leicestershire Partnership NHS Trust,20/03/18,Landline Telephone Rental / Calls,"Hawthorne Centre - Coalville (P14, LPT)",VIRGIN MEDIA BUSINESS,853083001/004/0318,695.77
Department of Health,Leicestershire Partnership NHS Trust,20/03/18,Landline Telephone Rental / Calls,Hinckley & District Hospital (PROPCO),VIRGIN MEDIA BUSINESS,853083001/004/0318,1574.07
Department of Health,Leicestershire Partnership NHS Trust,20/03/18,Landline Telephone Rental / Calls,"Hinckley and Bosworth Community Hospital (Sunnyside) (P133, LPT)",VIRGIN MEDIA BUSINESS,853083001/004/0318,1146.21
Department of Health,Leicestershire Partnership NHS Trust,20/03/18,Landline Telephone Rental / Calls,Hood Park Leisure Centre Clinic,VIRGIN MEDIA BUSINESS,853083001/004/0318,49.52
Department of Health,Leicestershire Partnership NHS Trust,20/03/18,Landline Telephone Rental / Calls,"Hynca Lodge (P33, LPT)",VIRGIN MEDIA BUSINESS,853083001/004/0318,418.79
Department of Health,Leicestershire Partnership NHS Trust,20/03/18,Landline Telephone Rental / Calls,"Legion House, Ashby",VIRGIN MEDIA BUSINESS,853083001/004/0318,71.82
Department of Health,Leicestershire Partnership NHS Trust,20/03/18,Landline Telephone Rental / Calls,Loughborough Health Centre (PROPCO),VIRGIN MEDIA BUSINESS,853083001/004/0318,7.76
Department of Health,Leicestershire Partnership NHS Trust,20/03/18,Landline Telephone Rental / Calls,"Loughborough Hospital (P136, LPT)",VIRGIN MEDIA BUSINESS,853083001/004/0318,4322.29
Department of Health,Leicestershire Partnership NHS Trust,20/03/18,Landline Telephone Rental / Calls,Mawson House (LPT),VIRGIN MEDIA BUSINESS,853083001/004/0318,482.48
Department of Health,Leicestershire Partnership NHS Trust,20/03/18,Landline Telephone Rental / Calls,Melbourne Centre (Pt Grnd flr) (PROPCO),VIRGIN MEDIA BUSINESS,853083001/004/0318,6.50
Department of Health,Leicestershire Partnership NHS Trust,20/03/18,Landline Telephone Rental / Calls,Melton Mowbray Hospital (previously St. Mary's) (PROPCO),VIRGIN MEDIA BUSINESS,853083001/004/0318,2973.43
Department of Health,Leicestershire Partnership NHS Trust,20/03/18,Landline Telephone Rental / Calls,Merlyn Vaz Centre (CHP),VIRGIN MEDIA BUSINESS,853083001/004/0318,2061.11
Department of Health,Leicestershire Partnership NHS Trust,20/03/18,Landline Telephone Rental / Calls,"Mett Centre (P49, LPT)",VIRGIN MEDIA BUSINESS,853083001/004/0318,89.70
Department of Health,Leicestershire Partnership NHS Trust,20/03/18,Landline Telephone Rental / Calls,NSPCC Training Cente,VIRGIN MEDIA BUSINESS,853083001/004/0318,180.16
Department of Health,Leicestershire Partnership NHS Trust,20/03/18,Landline Telephone Rental / Calls,New Parks Health Centre (PROPCO),VIRGIN MEDIA BUSINESS,853083001/004/0318,2082.63
Department of Health,Leicestershire Partnership NHS Trust,20/03/18,Landline Telephone Rental / Calls,"OSL House (P54, LPT)",VIRGIN MEDIA BUSINESS,853083001/004/0318,1764.34
Department of Health,Leicestershire Partnership NHS Trust,20/03/18,Landline Telephone Rental / Calls,"Orchard Resource Centre (P15, LPT)",VIRGIN MEDIA BUSINESS,853083001/004/0318,517.63
Department of Health,Leicestershire Partnership NHS Trust,20/03/18,Landline Telephone Rental / Calls,"Paget House (P55, LPT)",VIRGIN MEDIA BUSINESS,853083001/004/0318,-810.33
Department of Health,Leicestershire Partnership NHS Trust,20/03/18,Landline Telephone Rental / Calls,Pasley Road Health Centre (PROPCO),VIRGIN MEDIA BUSINESS,853083001/004/0318,313.78
Department of Health,Leicestershire Partnership NHS Trust,20/03/18,Landline Telephone Rental / Calls,"Prince Philip House (P96, LPT)",VIRGIN MEDIA BUSINESS,853083001/004/0318,2213.92
Department of Health,Leicestershire Partnership NHS Trust,20/03/18,Landline Telephone Rental / Calls,Rushey Mead Health Centre (PROPCO),VIRGIN MEDIA BUSINESS,853083001/004/0318,316.44
Department of Health,Leicestershire Partnership NHS Trust,20/03/18,Landline Telephone Rental / Calls,"Rutland Memorial Hospital (P134, LPT)",VIRGIN MEDIA BUSINESS,853083001/004/0318,280.03
Department of Health,Leicestershire Partnership NHS Trust,20/03/18,Landline Telephone Rental / Calls,"Shepshed Health Centre (P123, LPT)",VIRGIN MEDIA BUSINESS,853083001/004/0318,323.05
Department of Health,Leicestershire Partnership NHS Trust,20/03/18,Landline Telephone Rental / Calls,"Springfield Road Health Centre (P92, LPT)",VIRGIN MEDIA BUSINESS,853083001/004/0318,514.39
Department of Health,Leicestershire Partnership NHS Trust,20/03/18,Landline Telephone Rental / Calls,St Johns House (1st Floor) (PROPCO),VIRGIN MEDIA BUSINESS,853083001/004/0318,1541.11
Department of Health,Leicestershire Partnership NHS Trust,20/03/18,Landline Telephone Rental / Calls,St Peters Primary Care Centre (CHP),VIRGIN MEDIA BUSINESS,853083001/004/0318,2687.35
Department of Health,Leicestershire Partnership NHS Trust,20/03/18,Landline Telephone Rental / Calls,"Stewart House (P61, LPT)",VIRGIN MEDIA BUSINESS,853083001/004/0318,49.80
Department of Health,Leicestershire Partnership NHS Trust,20/03/18,Landline Telephone Rental / Calls,"Swithland House - London Road 352 (P44, LPT)",VIRGIN MEDIA BUSINESS,853083001/004/0318,397.52
Department of Health,Leicestershire Partnership NHS Trust,20/03/18,Landline Telephone Rental / Calls,"The Cedars (P19, LPT)",VIRGIN MEDIA BUSINESS,853083001/004/0318,718.60
Department of Health,Leicestershire Partnership NHS Trust,20/03/18,Landline Telephone Rental / Calls,"The Willows - Cordelia Close (P22, LPT)",VIRGIN MEDIA BUSINESS,853083001/004/0318,512.40
Department of Health,Leicestershire Partnership NHS Trust,20/03/18,Landline Telephone Rental / Calls,Uppingham Road Health Centre (PROPCO),VIRGIN MEDIA BUSINESS,853083001/004/0318,290.34
Department of Health,Leicestershire Partnership NHS Trust,20/03/18,Landline Telephone Rental / Calls,"Valentine Centre (P3, LPT)",VIRGIN MEDIA BUSINESS,853083001/004/0318,1687.32
Department of Health,Leicestershire Partnership NHS Trust,20/03/18,Landline Telephone Rental / Calls,Warren Park Way 25 (PROPCO),VIRGIN MEDIA BUSINESS,853083001/004/0318,960.59
Department of Health,Leicestershire Partnership NHS Trust,20/03/18,Landline Telephone Rental / Calls,"Westcotes Group -Westcotes House (P78, LPT)",VIRGIN MEDIA BUSINESS,853083001/004/0318,1296.64
Department of Health,Leicestershire Partnership NHS Trust,20/03/18,Landline Telephone Rental / Calls,Westcotes Health Centre (CHP),VIRGIN MEDIA BUSINESS,853083001/004/0318,689.64
Department of Health,Leicestershire Partnership NHS Trust,20/03/18,Landline Telephone Rental / Calls,"Winstanley Drive Health Centre (P8, LPT)",VIRGIN MEDIA BUSINESS,853083001/004/0318,471.97
Department of Health,Leicestershire Partnership NHS Trust,20/03/18,Payroll Deductions - Kiddi Vouchers,Balance Sheet Collection,WIDER PLAN LTD,4249014,46939.98
Department of Health,Leicestershire Partnership NHS Trust,20/03/18,Minor Works,"The Agnes Unit (AKA Assessment and Treatment Centre) (P85, LPT)",ARDEN PARTNERSHIP (LEICESTER),SI0005,43.90
Department of Health,Leicestershire Partnership NHS Trust,20/03/18,Unitary Payment,"The Agnes Unit (AKA Assessment and Treatment Centre) (P85, LPT)",ARDEN PARTNERSHIP (LEICESTER),SI0005,99500.93
Department of Health,Leicestershire Partnership NHS Trust,20/03/18,Water & Sewerage Charges,"Shepshed Health Centre (P123, LPT)",WATER PLUS,0865005329/INV00705352CR,-26374.88
Department of Health,Leicestershire Partnership NHS Trust,20/03/18,Water & Sewerage Charges,"Beaumont Leys Health Centre (P94, LPT)",WATER PLUS,0865005329/INV00705352,998.94
Department of Health,Leicestershire Partnership NHS Trust,20/03/18,Water & Sewerage Charges,"Coalville Community Hospital (P138, LPT)",WATER PLUS,0865005329/INV00705352,936.17
Department of Health,Leicestershire Partnership NHS Trust,20/03/18,Water & Sewerage Charges,"Coalville Health Centre (P121, LPT)",WATER PLUS,0865005329/INV00705352,1924.35
Department of Health,Leicestershire Partnership NHS Trust,20/03/18,Water & Sewerage Charges,"Evington Centre (P6, LPT)",WATER PLUS,0865005329/INV00705352,11316.96
Department of Health,Leicestershire Partnership NHS Trust,20/03/18,Water & Sewerage Charges,"Feilding Palmer Hospital (Lutterworth) (P131, LPT)",WATER PLUS,0865005329/INV00705352,473.06
Department of Health,Leicestershire Partnership NHS Trust,20/03/18,Water & Sewerage Charges,HIS,WATER PLUS,0865005329/INV00705352,337.84
Department of Health,Leicestershire Partnership NHS Trust,20/03/18,Water & Sewerage Charges,Hinckley & District Hospital (PROPCO),WATER PLUS,0865005329/INV00705352,839.98
Department of Health,Leicestershire Partnership NHS Trust,20/03/18,Water & Sewerage Charges,"Hinckley and Bosworth Community Hospital (Sunnyside) (P133, LPT)",WATER PLUS,0865005329/INV00705352,11117.41
Department of Health,Leicestershire Partnership NHS Trust,20/03/18,Water & Sewerage Charges,"Hynca Lodge (P33, LPT)",WATER PLUS,0865005329/INV00705352,1150.95
Department of Health,Leicestershire Partnership NHS Trust,20/03/18,Water & Sewerage Charges,"LGH - Gwendolen House (P4, LPT)",WATER PLUS,0865005329/INV00705352,1027.84
Department of Health,Leicestershire Partnership NHS Trust,20/03/18,Water & Sewerage Charges,"Loughborough Hospital (P136, LPT)",WATER PLUS,0865005329/INV00705352,645.75
Department of Health,Leicestershire Partnership NHS Trust,20/03/18,Water & Sewerage Charges,"Narborough Health Centre (P117, LPT)",WATER PLUS,0865005329/INV00705352,1316.38
Department of Health,Leicestershire Partnership NHS Trust,20/03/18,Water & Sewerage Charges,"OSL House (P54, LPT)",WATER PLUS,0865005329/INV00705352,1613.80
Department of Health,Leicestershire Partnership NHS Trust,20/03/18,Water & Sewerage Charges,"Orchard Resource Centre (P15, LPT)",WATER PLUS,0865005329/INV00705352,2765.86
Department of Health,Leicestershire Partnership NHS Trust,20/03/18,Water & Sewerage Charges,Rothesay -  London Road 352A (LPT),WATER PLUS,0865005329/INV00705352,1575.59
Department of Health,Leicestershire Partnership NHS Trust,20/03/18,Water & Sewerage Charges,"Rubicon Close 3 (P56, LPT)",WATER PLUS,0865005329/INV00705352,553.22
Department of Health,Leicestershire Partnership NHS Trust,20/03/18,Water & Sewerage Charges,"Rutland Memorial Hospital (P134, LPT)",WATER PLUS,0865005329/INV00705352,2150.90
Department of Health,Leicestershire Partnership NHS Trust,20/03/18,Water & Sewerage Charges,"Shepshed Health Centre (P123, LPT)",WATER PLUS,0865005329/INV00705352,26374.88
Department of Health,Leicestershire Partnership NHS Trust,20/03/18,Water & Sewerage Charges,"Springfield Road Health Centre (P92, LPT)",WATER PLUS,0865005329/INV00705352,3177.41
Department of Health,Leicestershire Partnership NHS Trust,20/03/18,Water & Sewerage Charges,"Stewart House (P61, LPT)",WATER PLUS,0865005329/INV00705352,4803.95
Department of Health,Leicestershire Partnership NHS Trust,20/03/18,Water & Sewerage Charges,"Swithland House - London Road 352 (P44, LPT)",WATER PLUS,0865005329/INV00705352,682.37
Department of Health,Leicestershire Partnership NHS Trust,20/03/18,Water & Sewerage Charges,"The Agnes Unit (AKA Assessment and Treatment Centre) (P85, LPT)",WATER PLUS,0865005329/INV00705352,8396.65
Department of Health,Leicestershire Partnership NHS Trust,20/03/18,Water & Sewerage Charges,"The Cedars (P19, LPT)",WATER PLUS,0865005329/INV00705352,1094.98
Department of Health,Leicestershire Partnership NHS Trust,20/03/18,Water & Sewerage Charges,"The Willows - Cordelia Close (P22, LPT)",WATER PLUS,0865005329/INV00705352,1377.41
Department of Health,Leicestershire Partnership NHS Trust,20/03/18,Water & Sewerage Charges,"Westcotes Group -Westcotes House (P78, LPT)",WATER PLUS,0865005329/INV00705352,500.75
Department of Health,Leicestershire Partnership NHS Trust,20/03/18,Water & Sewerage Charges,"Coalville Community Hospital (P138, LPT)",WATER PLUS,0865005329/INV00185108,2459.41
Department of Health,Leicestershire Partnership NHS Trust,20/03/18,Water & Sewerage Charges,"Evington Centre (P6, LPT)",WATER PLUS,0865005329/INV00185108,8866.94
Department of Health,Leicestershire Partnership NHS Trust,20/03/18,Water & Sewerage Charges,"Hinckley and Bosworth Community Hospital (Sunnyside) (P133, LPT)",WATER PLUS,0865005329/INV00185108,8592.66
Department of Health,Leicestershire Partnership NHS Trust,20/03/18,Water & Sewerage Charges,"LGH - Gwendolen House (P4, LPT)",WATER PLUS,0865005329/INV00185108,2842.29
Department of Health,Leicestershire Partnership NHS Trust,20/03/18,Water & Sewerage Charges,"Loughborough Hospital (P136, LPT)",WATER PLUS,0865005329/INV00185108,3875.53
Department of Health,Leicestershire Partnership NHS Trust,20/03/18,Water & Sewerage Charges,Rothesay -  London Road 352A (LPT),WATER PLUS,0865005329/INV00185108,1574.21
Department of Health,Leicestershire Partnership NHS Trust,20/03/18,Water & Sewerage Charges,"Swithland House - London Road 352 (P44, LPT)",WATER PLUS,0865005329/INV00185108,605.99
Department of Health,Leicestershire Partnership NHS Trust,20/03/18,Water & Sewerage Charges,"The Willows - Cordelia Close (P22, LPT)",WATER PLUS,0865005329/INV00185108,2866.06
Department of Health,Leicestershire Partnership NHS Trust,20/03/18,Water & Sewerage Charges,Bridge Park Plaza - First Floor (LPT),WATER PLUS,0865005329/INV00815972,2527.56
Department of Health,Leicestershire Partnership NHS Trust,20/03/18,Water & Sewerage Charges,Bridge Park Road (Unit C18) (LPT),WATER PLUS,0865005329/INV00815972,140.25
Department of Health,Leicestershire Partnership NHS Trust,20/03/18,Water & Sewerage Charges,"Coalville Community Hospital (P138, LPT)",WATER PLUS,0865005329/INV00815972,3724.43
Department of Health,Leicestershire Partnership NHS Trust,20/03/18,Water & Sewerage Charges,"LGH - Gwendolen House (P4, LPT)",WATER PLUS,0865005329/INV00815972,4036.13
Department of Health,Leicestershire Partnership NHS Trust,20/03/18,Water & Sewerage Charges,"Loughborough Hospital (P136, LPT)",WATER PLUS,0865005329/INV00815972,97558.62
Department of Health,Leicestershire Partnership NHS Trust,20/03/18,Water & Sewerage Charges,"OSL House (P54, LPT)",WATER PLUS,0865005329/INV00815972,1939.46
Department of Health,Leicestershire Partnership NHS Trust,20/03/18,Water & Sewerage Charges,Renaissance House (D&A Counselling) (LPT),WATER PLUS,0865005329/INV00815972,259.35
Department of Health,Leicestershire Partnership NHS Trust,20/03/18,Water & Sewerage Charges,"Rubicon Close 3 (P56, LPT)",WATER PLUS,0865005329/INV00815972,506.42
Department of Health,Leicestershire Partnership NHS Trust,20/03/18,Water & Sewerage Charges,"Shepshed Health Centre (P123, LPT)",WATER PLUS,0865005329/INV00815972,1728.84
Department of Health,Leicestershire Partnership NHS Trust,20/03/18,Water & Sewerage Charges,"The Grange 1 (P4, LPT)",WATER PLUS,0865005329/INV00815972,545.79
Department of Health,Leicestershire Partnership NHS Trust,20/03/18,Water & Sewerage Charges,"The Grange 2 (P41, LPT)",WATER PLUS,0865005329/INV00815972,515.87
Department of Health,Leicestershire Partnership NHS Trust,20/03/18,Water & Sewerage Charges,"The Willows - Cordelia Close (P22, LPT)",WATER PLUS,0865005329/INV00815972,5005.60
Department of Health,Leicestershire Partnership NHS Trust,21/03/18,External Data Processing / Storage,Records & information Governance,C & V DATA MANAGEMENT SRV LTD,0062145,31551.51
Department of Health,Leicestershire Partnership NHS Trust,21/03/18,Services / Recharges from NHS Trusts,Unallocated Budgets,UHL NHS TRUST (RWE),L0205441,31404.00
Department of Health,Leicestershire Partnership NHS Trust,21/03/18,Leased / Hired Vehicles,Adult City West CMHT - BHSCC,AUTOMOTIVE LEASING LTD,503760439,5.00
Department of Health,Leicestershire Partnership NHS Trust,21/03/18,Leased / Hired Vehicles,Autism,AUTOMOTIVE LEASING LTD,503760439,743.26
Department of Health,Leicestershire Partnership NHS Trust,21/03/18,Prep_ LT1y -Prepayments Lease Cars,Balance Sheet Collection,AUTOMOTIVE LEASING LTD,503760439,80521.30
Department of Health,Leicestershire Partnership NHS Trust,21/03/18,Trade_Drs_LT1y -Lease Cars Invoicing Contrl Ac.,Balance Sheet Collection,AUTOMOTIVE LEASING LTD,503760439,79.71
Department of Health,Leicestershire Partnership NHS Trust,21/03/18,Leased / Hired Vehicles,CAMHS Young Peoples Team,AUTOMOTIVE LEASING LTD,503760439,5.00
Department of Health,Leicestershire Partnership NHS Trust,21/03/18,Leased / Hired Vehicles,City Community Therapy,AUTOMOTIVE LEASING LTD,503760439,644.60
Department of Health,Leicestershire Partnership NHS Trust,21/03/18,Leased / Hired Vehicles,City East Leic HV Area 6,AUTOMOTIVE LEASING LTD,503760439,5.00
Department of Health,Leicestershire Partnership NHS Trust,21/03/18,Leased / Hired Vehicles,City Planned Care - East,AUTOMOTIVE LEASING LTD,503760439,473.63
Department of Health,Leicestershire Partnership NHS Trust,21/03/18,Leased / Hired Vehicles,"East Planned Care - Oadby,Wigston & Harborough",AUTOMOTIVE LEASING LTD,503760439,171.06
Department of Health,Leicestershire Partnership NHS Trust,21/03/18,Leased / Hired Vehicles,HIS,AUTOMOTIVE LEASING LTD,503760439,5.00
Department of Health,Leicestershire Partnership NHS Trust,21/03/18,Leased / Hired Vehicles,Heart Failure Service,AUTOMOTIVE LEASING LTD,503760439,115.08
Department of Health,Leicestershire Partnership NHS Trust,21/03/18,Leased / Hired Vehicles,Hospice at Home,AUTOMOTIVE LEASING LTD,503760439,137.90
Department of Health,Leicestershire Partnership NHS Trust,21/03/18,Leased / Hired Vehicles,Immunisation,AUTOMOTIVE LEASING LTD,503760439,1024.80
Department of Health,Leicestershire Partnership NHS Trust,21/03/18,Leased / Hired Vehicles,PIER Team - Early Intervention Services,AUTOMOTIVE LEASING LTD,503760439,10.00
Department of Health,Leicestershire Partnership NHS Trust,21/03/18,Leased / Hired Vehicles,South Leicestershire CMHT MHSOP,AUTOMOTIVE LEASING LTD,503760439,5.00
Department of Health,Leicestershire Partnership NHS Trust,21/03/18,Leased / Hired Vehicles,South West ICS,AUTOMOTIVE LEASING LTD,503760439,197.96
Department of Health,Leicestershire Partnership NHS Trust,21/03/18,Leased / Hired Vehicles,Unscheduled Care - West Locality,AUTOMOTIVE LEASING LTD,503760439,5.00
Department of Health,Leicestershire Partnership NHS Trust,21/03/18,Leased / Hired Vehicles,West Planned Care - NWL Hub,AUTOMOTIVE LEASING LTD,503760439,5.00
Department of Health,Leicestershire Partnership NHS Trust,21/03/18,SPECIALIST REGISTRAR,Medical Trainees,UHL NHS TRUST (RWE),L0205543,165124.63
Department of Health,Leicestershire Partnership NHS Trust,22/03/18,NURSE - BAND 2 - AGENCY,AGNES UNIT POD 2,HCL NURSING,MAN27492,180.21
Department of Health,Leicestershire Partnership NHS Trust,22/03/18,Nurse - Band 6 -Agency,Adult City East CMHT - Merlyn Vaz,HCL NURSING,MAN27492,1834.06
Department of Health,Leicestershire Partnership NHS Trust,22/03/18,Nurse - Band 6 -Agency,Adult County North West Leicestershire CMHT,HCL NURSING,MAN27492,1046.16
Department of Health,Leicestershire Partnership NHS Trust,22/03/18,NURSE - BAND 2 - AGENCY,Ashby Ward (Bradgate Unit),HCL NURSING,MAN27492,522.51
Department of Health,Leicestershire Partnership NHS Trust,22/03/18,NURSE - BAND 5 - AGENCY,Ashby Ward (Bradgate Unit),HCL NURSING,MAN27492,311.58
Department of Health,Leicestershire Partnership NHS Trust,22/03/18,NURSE - BAND 2 - AGENCY,Aston Ward (Bradgate Unit),HCL NURSING,MAN27492,501.79
Department of Health,Leicestershire Partnership NHS Trust,22/03/18,NURSE - BAND 5 - AGENCY,Aston Ward (Bradgate Unit),HCL NURSING,MAN27492,3790.74
Department of Health,Leicestershire Partnership NHS Trust,22/03/18,NURSE - BAND 2 - AGENCY,Beaumont Ward - Bradgate Unit,HCL NURSING,MAN27492,1882.66
Department of Health,Leicestershire Partnership NHS Trust,22/03/18,NURSE - BAND 5 - AGENCY,Beaumont Ward - Bradgate Unit,HCL NURSING,MAN27492,1136.64
Department of Health,Leicestershire Partnership NHS Trust,22/03/18,NURSE - BAND 2 - AGENCY,Belvoir Psychiatric Intensive Care Unit,HCL NURSING,MAN27492,1088.11
Department of Health,Leicestershire Partnership NHS Trust,22/03/18,NURSE - BAND 5 - AGENCY,Belvoir Psychiatric Intensive Care Unit,HCL NURSING,MAN27492,989.44
Department of Health,Leicestershire Partnership NHS Trust,22/03/18,NURSE - BAND 2 - AGENCY,Bosworth Ward - Bradgate Unit,HCL NURSING,MAN27492,612.36
Department of Health,Leicestershire Partnership NHS Trust,22/03/18,NURSE - BAND 5 - AGENCY,Bosworth Ward - Bradgate Unit,HCL NURSING,MAN27492,649.96
Department of Health,Leicestershire Partnership NHS Trust,22/03/18,Nurse - Band 6 -Agency,Crisis Resolution,HCL NURSING,MAN27492,8331.66
Department of Health,Leicestershire Partnership NHS Trust,22/03/18,NURSE - BAND 2 - AGENCY,Griffin Ward (HPC),HCL NURSING,MAN27492,598.45
Department of Health,Leicestershire Partnership NHS Trust,22/03/18,NURSE - BAND 5 - AGENCY,Griffin Ward (HPC),HCL NURSING,MAN27492,442.53
Department of Health,Leicestershire Partnership NHS Trust,22/03/18,NURSE - BAND 5 - AGENCY,HMP Leicester Prison,HCL NURSING,MAN27492,5628.51
Department of Health,Leicestershire Partnership NHS Trust,22/03/18,NURSE - BAND 2 - AGENCY,Heather Ward,HCL NURSING,MAN27492,736.00
Department of Health,Leicestershire Partnership NHS Trust,22/03/18,NURSE - BAND 5 - AGENCY,Heather Ward,HCL NURSING,MAN27492,1910.68
Department of Health,Leicestershire Partnership NHS Trust,22/03/18,NURSE - BAND 5 - AGENCY,Mill Lodge,HCL NURSING,MAN27492,179.25
Department of Health,Leicestershire Partnership NHS Trust,22/03/18,NURSE - BAND 2 - AGENCY,Phoenix Ward (HPC),HCL NURSING,MAN27492,187.31
Department of Health,Leicestershire Partnership NHS Trust,22/03/18,NURSE - BAND 2 - AGENCY,Place Of Safety Assessment Unit,HCL NURSING,MAN27492,381.23
Department of Health,Leicestershire Partnership NHS Trust,22/03/18,NURSE - BAND 5 - AGENCY,Stewart House,HCL NURSING,MAN27492,289.61
Department of Health,Leicestershire Partnership NHS Trust,22/03/18,NURSE - BAND 2 - AGENCY,Sycamore (Willows),HCL NURSING,MAN27492,200.58
Department of Health,Leicestershire Partnership NHS Trust,22/03/18,NURSE - BAND 2 - AGENCY,Thornton Ward - Bradgate Unit,HCL NURSING,MAN27492,805.90
Department of Health,Leicestershire Partnership NHS Trust,22/03/18,NURSE - BAND 2 - AGENCY,Watermead Ward (Bradgate Unit),HCL NURSING,MAN27492,205.70
Department of Health,Leicestershire Partnership NHS Trust,22/03/18,NURSE - BAND 5 - AGENCY,Watermead Ward (Bradgate Unit),HCL NURSING,MAN27492,979.77
Department of Health,Leicestershire Partnership NHS Trust,22/03/18,Community Budgets,City 0  19 Central Report,VOLUNTARY ACTION LEICESTER,22286,25000.00
Department of Health,Leicestershire Partnership NHS Trust,22/03/18,Community Budgets,County 0-19 Central Report,VOLUNTARY ACTION LEICESTER,22285,25000.00
Department of Health,Leicestershire Partnership NHS Trust,22/03/18,Computer Hardware,HIS External Recharge,DELL COMPUTERS,7402422541,25321.97
Department of Health,Leicestershire Partnership NHS Trust,23/03/18,GP IT Expenditure,Area Team,SYNTAX CONSULTANCY LTD,1207,30000.00
Department of Health,Leicestershire Partnership NHS Trust,23/03/18,GP IT Expenditure,Area Team,SYNTAX CONSULTANCY LTD,1208,30000.00
Department of Health,Leicestershire Partnership NHS Trust,23/03/18,GP IT Expenditure,Area Team,SYNTAX CONSULTANCY LTD,1206,30000.00
Department of Health,Leicestershire Partnership NHS Trust,23/03/18,NURSE - BAND 2 - AGENCY,Beechwood Ward,HCL NURSING,MAN27493,1006.56
Department of Health,Leicestershire Partnership NHS Trust,23/03/18,NURSE - BAND 5 - AGENCY,Beechwood Ward,HCL NURSING,MAN27493,322.37
Department of Health,Leicestershire Partnership NHS Trust,23/03/18,NURSE - BAND 5 - AGENCY,City East CMHT MHSOP,HCL NURSING,MAN27493,836.93
Department of Health,Leicestershire Partnership NHS Trust,23/03/18,NURSE - BAND 5 - AGENCY,City ICS,HCL NURSING,MAN27493,7055.03
Department of Health,Leicestershire Partnership NHS Trust,23/03/18,NURSE - BAND 5 - AGENCY,City Planned Care - East,HCL NURSING,MAN27493,11095.61
Department of Health,Leicestershire Partnership NHS Trust,23/03/18,NURSE - BAND 2 - AGENCY,City Planned Care - West,HCL NURSING,MAN27493,1647.25
Department of Health,Leicestershire Partnership NHS Trust,23/03/18,NURSE - BAND 5 - AGENCY,City Planned Care - West,HCL NURSING,MAN27493,11632.91
Department of Health,Leicestershire Partnership NHS Trust,23/03/18,NURSE - BAND 5 - AGENCY,City West CMHT MHSOP,HCL NURSING,MAN27493,1208.10
Department of Health,Leicestershire Partnership NHS Trust,23/03/18,NURSE - BAND 2 - AGENCY,Clarendon Ward,HCL NURSING,MAN27493,277.94
Department of Health,Leicestershire Partnership NHS Trust,23/03/18,NURSE - BAND 5 - AGENCY,Clarendon Ward,HCL NURSING,MAN27493,629.68
Department of Health,Leicestershire Partnership NHS Trust,23/03/18,NURSE - BAND 2 - AGENCY,Coalville Snibston Ward,HCL NURSING,MAN27493,1648.54
Department of Health,Leicestershire Partnership NHS Trust,23/03/18,NURSE - BAND 2 - AGENCY,Coalville Ward 2,HCL NURSING,MAN27493,423.39
Department of Health,Leicestershire Partnership NHS Trust,23/03/18,NURSE - BAND 2 - AGENCY,Dalgliesh Ward,HCL NURSING,MAN27493,540.78
Department of Health,Leicestershire Partnership NHS Trust,23/03/18,NURSE - BAND 5 - AGENCY,Dalgliesh Ward,HCL NURSING,MAN27493,822.90
Department of Health,Leicestershire Partnership NHS Trust,23/03/18,NURSE - BAND 5 - AGENCY,"East Planned Care - Melton,Syston,Rutland",HCL NURSING,MAN27493,6265.06
Department of Health,Leicestershire Partnership NHS Trust,23/03/18,NURSE - BAND 2 - AGENCY,"East Planned Care - Oadby,Wigston & Harborough",HCL NURSING,MAN27493,1660.42
Department of Health,Leicestershire Partnership NHS Trust,23/03/18,NURSE - BAND 5 - AGENCY,"East Planned Care - Oadby,Wigston & Harborough",HCL NURSING,MAN27493,2646.39
Department of Health,Leicestershire Partnership NHS Trust,23/03/18,NURSE - BAND 5 - AGENCY,Evening Service,HCL NURSING,MAN27493,2127.68
Department of Health,Leicestershire Partnership NHS Trust,23/03/18,NURSE - BAND 5 - AGENCY,Fielding Palmer Nursing,HCL NURSING,MAN27493,1739.28
Department of Health,Leicestershire Partnership NHS Trust,23/03/18,NURSE - BAND 2 - AGENCY,Gwendolen Ward (ex Coleman Ward),HCL NURSING,MAN27493,365.80
Department of Health,Leicestershire Partnership NHS Trust,23/03/18,NURSE - BAND 2 - AGENCY,H&B Comm Hosp East Ward,HCL NURSING,MAN27493,555.55
Department of Health,Leicestershire Partnership NHS Trust,23/03/18,NURSE - BAND 2 - AGENCY,H&B Comm Hosp North Ward,HCL NURSING,MAN27493,2262.33
Department of Health,Leicestershire Partnership NHS Trust,23/03/18,NURSE - BAND 5 - AGENCY,H&B Comm Hosp North Ward,HCL NURSING,MAN27493,345.88
Department of Health,Leicestershire Partnership NHS Trust,23/03/18,NURSE - BAND 2 - AGENCY,Kirby Ward,HCL NURSING,MAN27493,201.67
Department of Health,Leicestershire Partnership NHS Trust,23/03/18,NURSE - BAND 2 - AGENCY,Lough Swithland Ward,HCL NURSING,MAN27493,218.24
Department of Health,Leicestershire Partnership NHS Trust,23/03/18,NURSE - BAND 5 - AGENCY,North East ICS,HCL NURSING,MAN27493,-784.99
Department of Health,Leicestershire Partnership NHS Trust,23/03/18,NURSE - BAND 2 - AGENCY,North West ICS,HCL NURSING,MAN27493,3868.84
Department of Health,Leicestershire Partnership NHS Trust,23/03/18,NURSE - BAND 5 - AGENCY,North West ICS,HCL NURSING,MAN27493,1752.32
Department of Health,Leicestershire Partnership NHS Trust,23/03/18,NURSE - BAND 5 - AGENCY,South East ICS,HCL NURSING,MAN27493,5091.14
Department of Health,Leicestershire Partnership NHS Trust,23/03/18,NURSE - BAND 5 - AGENCY,South West ICS,HCL NURSING,MAN27493,380.60
Department of Health,Leicestershire Partnership NHS Trust,23/03/18,NURSE - BAND 5 - AGENCY,St Lukes Stroke Ward,HCL NURSING,MAN27493,658.83
Department of Health,Leicestershire Partnership NHS Trust,23/03/18,NURSE - BAND 2 - AGENCY,St Lukes Ward 3,HCL NURSING,MAN27493,185.22
Department of Health,Leicestershire Partnership NHS Trust,23/03/18,NURSE - BAND 5 - AGENCY,St Lukes Ward 3,HCL NURSING,MAN27493,1702.95
Department of Health,Leicestershire Partnership NHS Trust,23/03/18,NURSE - BAND 2 - AGENCY,Wakerley Ward (ex Gwendolen ward),HCL NURSING,MAN27493,213.51
Department of Health,Leicestershire Partnership NHS Trust,23/03/18,NURSE - BAND 5 - AGENCY,Wakerley Ward (ex Gwendolen ward),HCL NURSING,MAN27493,321.26
Department of Health,Leicestershire Partnership NHS Trust,23/03/18,NURSE - BAND 2 - AGENCY,Welford Ward,HCL NURSING,MAN27493,295.57
Department of Health,Leicestershire Partnership NHS Trust,23/03/18,NURSE - BAND 2 - AGENCY,West Planned Care  - Charnwood Hub,HCL NURSING,MAN27493,566.24
Department of Health,Leicestershire Partnership NHS Trust,23/03/18,NURSE - BAND 5 - AGENCY,West Planned Care  - Charnwood Hub,HCL NURSING,MAN27493,7924.44
Department of Health,Leicestershire Partnership NHS Trust,23/03/18,NURSE - BAND 5 - AGENCY,West Planned Care - NWL Hub,HCL NURSING,MAN27493,2234.73
Department of Health,Leicestershire Partnership NHS Trust,23/03/18,Computer Software,HIS Programme & Change,HEALTHCARE GATEWAY LIMITED,INV-0200,78680.10
Department of Health,Leicestershire Partnership NHS Trust,23/03/18,Trade_Drs_LT1y -Miscellaneous receipts,Balance Sheet Collection,HEALTH EDUCATION ENGLAND NHS,REFUNDCREDIT3106,479125.00
Department of Health,Leicestershire Partnership NHS Trust,26/03/18,WIP Project Not in BS - Transport and Equipment,Work in Progress,ROCHE DIAGNOSTICS LTD,6500942279,46731.94
Department of Health,Leicestershire Partnership NHS Trust,26/03/18,Rent,County Hall,LEIC COUNTY COUNCIL,6277045,34488.50
Department of Health,Leicestershire Partnership NHS Trust,26/03/18,Crs_NHS_LT1y -Resus Inventory Supplied.,Balance Sheet Collection,NHS SUPPLY CHAIN (ST1450),1018252869,47985.37
Department of Health,Leicestershire Partnership NHS Trust,26/03/18,Services / Recharges from NHS Trusts,Inter Unit I & E Distribution,UHL NHS TRUST (RWE),C0020498,-103311.94
Department of Health,Leicestershire Partnership NHS Trust,27/03/18,Nurse - Band 6 -Agency,Adult City East CMHT - Merlyn Vaz,HCL NURSING,MAN27529,2775.67
Department of Health,Leicestershire Partnership NHS Trust,27/03/18,Nurse - Band 6 -Agency,Adult County North West Leicestershire CMHT,HCL NURSING,MAN27529,836.93
Department of Health,Leicestershire Partnership NHS Trust,27/03/18,NURSE - BAND 2 - AGENCY,Ashby Ward (Bradgate Unit),HCL NURSING,MAN27529,180.21
Department of Health,Leicestershire Partnership NHS Trust,27/03/18,NURSE - BAND 5 - AGENCY,Ashby Ward (Bradgate Unit),HCL NURSING,MAN27529,830.18
Department of Health,Leicestershire Partnership NHS Trust,27/03/18,NURSE - BAND 2 - AGENCY,Aston Ward (Bradgate Unit),HCL NURSING,MAN27529,604.98
Department of Health,Leicestershire Partnership NHS Trust,27/03/18,NURSE - BAND 5 - AGENCY,Aston Ward (Bradgate Unit),HCL NURSING,MAN27529,3937.56
Department of Health,Leicestershire Partnership NHS Trust,27/03/18,NURSE - BAND 2 - AGENCY,Beaumont Ward - Bradgate Unit,HCL NURSING,MAN27529,1518.59
Department of Health,Leicestershire Partnership NHS Trust,27/03/18,NURSE - BAND 5 - AGENCY,Beaumont Ward - Bradgate Unit,HCL NURSING,MAN27529,1714.53
Department of Health,Leicestershire Partnership NHS Trust,27/03/18,NURSE - BAND 2 - AGENCY,Belvoir Psychiatric Intensive Care Unit,HCL NURSING,MAN27529,703.23
Department of Health,Leicestershire Partnership NHS Trust,27/03/18,NURSE - BAND 5 - AGENCY,Belvoir Psychiatric Intensive Care Unit,HCL NURSING,MAN27529,669.77
Department of Health,Leicestershire Partnership NHS Trust,27/03/18,NURSE - BAND 2 - AGENCY,Bosworth Ward - Bradgate Unit,HCL NURSING,MAN27529,638.27
Department of Health,Leicestershire Partnership NHS Trust,27/03/18,NURSE - BAND 5 - AGENCY,Bosworth Ward - Bradgate Unit,HCL NURSING,MAN27529,1365.46
Department of Health,Leicestershire Partnership NHS Trust,27/03/18,NURSE - BAND 2 - AGENCY,Cedar (Willows),HCL NURSING,MAN27529,334.57
Department of Health,Leicestershire Partnership NHS Trust,27/03/18,Nurse - Band 6 -Agency,Crisis Resolution,HCL NURSING,MAN27529,11786.18
Department of Health,Leicestershire Partnership NHS Trust,27/03/18,Nurse - Band 6 -Agency,Deliberate Self Harm,HCL NURSING,MAN27529,1872.96
Department of Health,Leicestershire Partnership NHS Trust,27/03/18,NURSE - BAND 2 - AGENCY,Griffin Ward (HPC),HCL NURSING,MAN27529,312.46
Department of Health,Leicestershire Partnership NHS Trust,27/03/18,NURSE - BAND 5 - AGENCY,Griffin Ward (HPC),HCL NURSING,MAN27529,2015.32
Department of Health,Leicestershire Partnership NHS Trust,27/03/18,NURSE - BAND 5 - AGENCY,HMP Leicester Prison,HCL NURSING,MAN27529,7771.53
Department of Health,Leicestershire Partnership NHS Trust,27/03/18,NURSE - BAND 2 - AGENCY,Heather Ward,HCL NURSING,MAN27529,1205.20
Department of Health,Leicestershire Partnership NHS Trust,27/03/18,NURSE - BAND 5 - AGENCY,Heather Ward,HCL NURSING,MAN27529,966.93
Department of Health,Leicestershire Partnership NHS Trust,27/03/18,NURSE - BAND 2 - AGENCY,Maple Ward,HCL NURSING,MAN27529,116.19
Department of Health,Leicestershire Partnership NHS Trust,27/03/18,NURSE - BAND 2 - AGENCY,Mill Lodge,HCL NURSING,MAN27529,514.51
Department of Health,Leicestershire Partnership NHS Trust,27/03/18,NURSE - BAND 2 - AGENCY,Phoenix Ward (HPC),HCL NURSING,MAN27529,336.82
Department of Health,Leicestershire Partnership NHS Trust,27/03/18,NURSE - BAND 2 - AGENCY,Stewart House,HCL NURSING,MAN27529,153.31
Department of Health,Leicestershire Partnership NHS Trust,27/03/18,NURSE - BAND 2 - AGENCY,Thornton Ward - Bradgate Unit,HCL NURSING,MAN27529,505.23
Department of Health,Leicestershire Partnership NHS Trust,27/03/18,NURSE - BAND 5 - AGENCY,Thornton Ward - Bradgate Unit,HCL NURSING,MAN27529,329.81
Department of Health,Leicestershire Partnership NHS Trust,27/03/18,NURSE - BAND 2 - AGENCY,Watermead Ward (Bradgate Unit),HCL NURSING,MAN27529,168.41
Department of Health,Leicestershire Partnership NHS Trust,27/03/18,NURSE - BAND 5 - AGENCY,Watermead Ward (Bradgate Unit),HCL NURSING,MAN27529,659.63
Department of Health,Leicestershire Partnership NHS Trust,27/03/18,Water & Sewerage Charges,"Coalville Community Hospital (P138, LPT)",WATER PLUS,0865005329/INV01168869,1842.97
Department of Health,Leicestershire Partnership NHS Trust,27/03/18,Water & Sewerage Charges,"Evington Centre (P6, LPT)",WATER PLUS,0865005329/INV01168869,8872.21
Department of Health,Leicestershire Partnership NHS Trust,27/03/18,Water & Sewerage Charges,"Hinckley and Bosworth Community Hospital (Sunnyside) (P133, LPT)",WATER PLUS,0865005329/INV01168869,9216.11
Department of Health,Leicestershire Partnership NHS Trust,27/03/18,Water & Sewerage Charges,"LGH - Gwendolen House (P4, LPT)",WATER PLUS,0865005329/INV01168869,869.20
Department of Health,Leicestershire Partnership NHS Trust,27/03/18,Water & Sewerage Charges,"Loughborough Hospital (P136, LPT)",WATER PLUS,0865005329/INV01168869,22404.07
Department of Health,Leicestershire Partnership NHS Trust,27/03/18,Water & Sewerage Charges,"Mill Lodge (P5, LPT)",WATER PLUS,0865005329/INV01168869,5888.81
Department of Health,Leicestershire Partnership NHS Trust,27/03/18,Water & Sewerage Charges,Renaissance House (D&A Counselling) (LPT),WATER PLUS,0865005329/INV01168869,190.31
Department of Health,Leicestershire Partnership NHS Trust,27/03/18,Water & Sewerage Charges,Rothesay -  London Road 352A (LPT),WATER PLUS,0865005329/INV01168869,1538.65
Department of Health,Leicestershire Partnership NHS Trust,27/03/18,Water & Sewerage Charges,"Shepshed Health Centre (P123, LPT)",WATER PLUS,0865005329/INV01168869,3391.25
Department of Health,Leicestershire Partnership NHS Trust,27/03/18,Water & Sewerage Charges,"Swithland House - London Road 352 (P44, LPT)",WATER PLUS,0865005329/INV01168869,635.26
Department of Health,Leicestershire Partnership NHS Trust,27/03/18,Water & Sewerage Charges,"The Willows - Cordelia Close (P22, LPT)",WATER PLUS,0865005329/INV01168869,3074.76
Department of Health,Leicestershire Partnership NHS Trust,27/03/18,NURSE - BAND 2 - AGENCY,Beechwood Ward,HCL NURSING,MAN27530,576.39
Department of Health,Leicestershire Partnership NHS Trust,27/03/18,NURSE - BAND 5 - AGENCY,Beechwood Ward,HCL NURSING,MAN27530,392.89
Department of Health,Leicestershire Partnership NHS Trust,27/03/18,Nurse - Band 6 -Agency,City East CMHT MHSOP,HCL NURSING,MAN27530,836.93
Department of Health,Leicestershire Partnership NHS Trust,27/03/18,NURSE - BAND 5 - AGENCY,City ICS,HCL NURSING,MAN27530,6084.52
Department of Health,Leicestershire Partnership NHS Trust,27/03/18,NURSE - BAND 5 - AGENCY,City Planned Care - East,HCL NURSING,MAN27530,12666.74
Department of Health,Leicestershire Partnership NHS Trust,27/03/18,NURSE - BAND 3 - AGENCY,City Planned Care - West,HCL NURSING,MAN27530,833.05
Department of Health,Leicestershire Partnership NHS Trust,27/03/18,NURSE - BAND 5 - AGENCY,City Planned Care - West,HCL NURSING,MAN27530,5216.01
Department of Health,Leicestershire Partnership NHS Trust,27/03/18,Nurse - Band 6 -Agency,City West CMHT MHSOP,HCL NURSING,MAN27530,1069.88
Department of Health,Leicestershire Partnership NHS Trust,27/03/18,NURSE - BAND 5 - AGENCY,Clarendon Ward,HCL NURSING,MAN27530,329.81
Department of Health,Leicestershire Partnership NHS Trust,27/03/18,NURSE - BAND 2 - AGENCY,Coalville Snibston Ward,HCL NURSING,MAN27530,697.08
Department of Health,Leicestershire Partnership NHS Trust,27/03/18,NURSE - BAND 2 - AGENCY,Coalville Ward 2,HCL NURSING,MAN27530,666.87
Department of Health,Leicestershire Partnership NHS Trust,27/03/18,NURSE - BAND 2 - AGENCY,Dalgliesh Ward,HCL NURSING,MAN27530,820.16
Department of Health,Leicestershire Partnership NHS Trust,27/03/18,NURSE - BAND 5 - AGENCY,Dalgliesh Ward,HCL NURSING,MAN27530,1859.21
Department of Health,Leicestershire Partnership NHS Trust,27/03/18,NURSE - BAND 5 - AGENCY,"East Planned Care - Melton,Syston,Rutland",HCL NURSING,MAN27530,3613.14
Department of Health,Leicestershire Partnership NHS Trust,27/03/18,NURSE - BAND 3 - AGENCY,"East Planned Care - Oadby,Wigston & Harborough",HCL NURSING,MAN27530,1166.71
Department of Health,Leicestershire Partnership NHS Trust,27/03/18,NURSE - BAND 5 - AGENCY,"East Planned Care - Oadby,Wigston & Harborough",HCL NURSING,MAN27530,2697.32
Department of Health,Leicestershire Partnership NHS Trust,27/03/18,NURSE - BAND 5 - AGENCY,Evening Service,HCL NURSING,MAN27530,1599.93
Department of Health,Leicestershire Partnership NHS Trust,27/03/18,NURSE - BAND 5 - AGENCY,Fielding Palmer Nursing,HCL NURSING,MAN27530,1409.02
Department of Health,Leicestershire Partnership NHS Trust,27/03/18,NURSE - BAND 2 - AGENCY,Gwendolen Ward (ex Coleman Ward),HCL NURSING,MAN27530,1085.99
Department of Health,Leicestershire Partnership NHS Trust,27/03/18,NURSE - BAND 5 - AGENCY,Gwendolen Ward (ex Coleman Ward),HCL NURSING,MAN27530,290.27
Department of Health,Leicestershire Partnership NHS Trust,27/03/18,NURSE - BAND 2 - AGENCY,H&B Comm Hosp East Ward,HCL NURSING,MAN27530,1033.03
Department of Health,Leicestershire Partnership NHS Trust,27/03/18,NURSE - BAND 5 - AGENCY,H&B Comm Hosp East Ward,HCL NURSING,MAN27530,1103.22
Department of Health,Leicestershire Partnership NHS Trust,27/03/18,NURSE - BAND 2 - AGENCY,H&B Comm Hosp North Ward,HCL NURSING,MAN27530,960.47
Department of Health,Leicestershire Partnership NHS Trust,27/03/18,NURSE - BAND 5 - AGENCY,H&B Comm Hosp North Ward,HCL NURSING,MAN27530,320.14
Department of Health,Leicestershire Partnership NHS Trust,27/03/18,NURSE - BAND 2 - AGENCY,Kirby Ward,HCL NURSING,MAN27530,794.39
Department of Health,Leicestershire Partnership NHS Trust,27/03/18,NURSE - BAND 2 - AGENCY,Lough Swithland Ward,HCL NURSING,MAN27530,1175.72
Department of Health,Leicestershire Partnership NHS Trust,27/03/18,Nurse - Band 6 -Agency,Melton & Rutland CMHT MHSOP,HCL NURSING,MAN27530,1069.88
Department of Health,Leicestershire Partnership NHS Trust,27/03/18,NURSE - BAND 5 - AGENCY,North East ICS,HCL NURSING,MAN27530,3605.84
Department of Health,Leicestershire Partnership NHS Trust,27/03/18,NURSE - BAND 3 - AGENCY,North West ICS,HCL NURSING,MAN27530,537.42
Department of Health,Leicestershire Partnership NHS Trust,27/03/18,NURSE - BAND 5 - AGENCY,North West ICS,HCL NURSING,MAN27530,2444.49
Department of Health,Leicestershire Partnership NHS Trust,27/03/18,NURSE - BAND 5 - AGENCY,South East ICS,HCL NURSING,MAN27530,6327.83
Department of Health,Leicestershire Partnership NHS Trust,27/03/18,NURSE - BAND 5 - AGENCY,South West ICS,HCL NURSING,MAN27530,2250.24
Department of Health,Leicestershire Partnership NHS Trust,27/03/18,NURSE - BAND 5 - AGENCY,St Lukes Stroke Ward,HCL NURSING,MAN27530,320.14
Department of Health,Leicestershire Partnership NHS Trust,27/03/18,NURSE - BAND 5 - AGENCY,St Lukes Ward 3,HCL NURSING,MAN27530,1669.36
Department of Health,Leicestershire Partnership NHS Trust,27/03/18,NURSE - BAND 2 - AGENCY,Wakerley Ward (ex Gwendolen ward),HCL NURSING,MAN27530,272.09
Department of Health,Leicestershire Partnership NHS Trust,27/03/18,NURSE - BAND 5 - AGENCY,Wakerley Ward (ex Gwendolen ward),HCL NURSING,MAN27530,302.58
Department of Health,Leicestershire Partnership NHS Trust,27/03/18,NURSE - BAND 2 - AGENCY,Welford Ward,HCL NURSING,MAN27530,194.43
Department of Health,Leicestershire Partnership NHS Trust,27/03/18,NURSE - BAND 5 - AGENCY,Welford Ward,HCL NURSING,MAN27530,326.24
Department of Health,Leicestershire Partnership NHS Trust,27/03/18,NURSE - BAND 3 - AGENCY,West Planned Care  - Charnwood Hub,HCL NURSING,MAN27530,116.97
Department of Health,Leicestershire Partnership NHS Trust,27/03/18,NURSE - BAND 5 - AGENCY,West Planned Care  - Charnwood Hub,HCL NURSING,MAN27530,7881.45
Department of Health,Leicestershire Partnership NHS Trust,27/03/18,NURSE - BAND 5 - AGENCY,West Planned Care - NWL Hub,HCL NURSING,MAN27530,1701.16
Department of Health,Leicestershire Partnership NHS Trust,28/03/18,Medical Equipment Repairs / Maintenance,Medical Devices Maintenance (LPT),NHS SUPPLY CHAIN (ST1450),2018005708,22324.98
Department of Health,Leicestershire Partnership NHS Trust,28/03/18,Payroll Deductions -Salary Sacrifice Cars Scheme,Balance Sheet Collection,TUSKER,LPT801-0318,25322.46
Department of Health,Leicestershire Partnership NHS Trust,29/03/18,SPECIALIST REGISTRAR,Medical Trainees,UHL NHS TRUST (RWE),DUMMYDEBITNOTE,58115.22
